Workbook

Sheet الرئيسية (hidden)
O4: اكتوبر
F20: أ. مساعد مصروفات وايرادات

Sheet مــصــــروفــــــات اليومـيـــة
A1: مــصــــروفــــــات يومـيـــة شــهــــــر 4
A2: مـصــروفــــات يومـيـــة | D2: =$D$40 -> 0 | F2: رصيــد الــعــهـــــــدة / محـمــود | J2: =$I$205 -> 0 | M2: سـحـب الـسـلـف | O2: =$O$32 -> 0 | R2: مــصــــروفــــــات الأكــل الشــهــريــة
A3: م | B3: الـصــنــــــــف | C3: الـتـــاريخ | D3: الـمـبــلـغ | F3: م | G3: الـصــنــــــــف | H3: الـتـــــاريخ | I3: الـمـبـلـغ | J3: العـهــدة | K3: الـتـــــاريخ | R3: م | S3: الـصــنــــــف | T3: الـمـبــلـغ
A4: 1 | F4: 1 | J4: ='رصيــد الخــزنــة'!H2 -> 0 | K4: ='رصيــد الخــزنــة'!I2 -> 00:00:00 | R4: 1
A5: 2 | F5: 2 | J5: ='رصيــد الخــزنــة'!H3 -> 0 | K5: ='رصيــد الخــزنــة'!I3 -> 00:00:00 | R5: 2
A6: 3 | F6: 3 | J6: ='رصيــد الخــزنــة'!H4 -> 0 | K6: ='رصيــد الخــزنــة'!I4 -> 00:00:00 | R6: 3
A7: 4 | F7: 4 | J7: ='رصيــد الخــزنــة'!H5 -> 0 | K7: ='رصيــد الخــزنــة'!I5 -> 00:00:00 | R7: 4
A8: 5 | F8: 5 | J8: ='رصيــد الخــزنــة'!H6 -> 0 | K8: ='رصيــد الخــزنــة'!I6 -> 00:00:00 | R8: الإجــمـــــــالـــى | T8: =SUM(T4:T4) -> 0
A9: 6 | F9: 6 | J9: ='رصيــد الخــزنــة'!H7 -> 0 | K9: ='رصيــد الخــزنــة'!I7 -> 00:00:00
A10: 7 | F10: 7 | J10: ='رصيــد الخــزنــة'!H8 -> 0 | K10: ='رصيــد الخــزنــة'!I8 -> 00:00:00 | S10: قــائـمــة منـسـدلــة | T10: =SUM(xx_2[المبلغ]) -> 0
A11: 8 | F11: 8 | J11: ='رصيــد الخــزنــة'!H9 -> 0 | K11: ='رصيــد الخــزنــة'!I9 -> 00:00:00 | S11: اختر إسـم الموظـف | T11: أحمد رمزى
A12: 9 | F12: 9 | J12: ='رصيــد الخــزنــة'!H10 -> 0 | K12: ='رصيــد الخــزنــة'!I10 -> 00:00:00 | S12: التاريخ | T12: المبلغ
A13: 10 | F13: 10 | J13: ='رصيــد الخــزنــة'!H11 -> 0 | K13: ='رصيــد الخــزنــة'!I11 -> 00:00:00 | S13: =IFERROR(INDEX($G$3:$K$203,SMALL(IF(($G$3:$G$203=$T$11),ROW($G$3:$G$203)-ROW($I$2)),ROW(A1)),2),"") ->  | T13: =IFERROR(INDEX($G$3:$K$203,SMALL(IF(($G$3:$G$203=$T$11),ROW($G$3:$G$203)-ROW($I$2)),ROW(A1)),3),"") -> 
A14: 11 | F14: 11 | J14: ='رصيــد الخــزنــة'!H12 -> 0 | K14: ='رصيــد الخــزنــة'!I12 -> 00:00:00 | S14: =IFERROR(INDEX($G$3:$K$203,SMALL(IF(($G$3:$G$203=$T$11),ROW($G$3:$G$203)-ROW($I$2)),ROW(A2)),2),"") ->  | T14: =IFERROR(INDEX($G$3:$K$203,SMALL(IF(($G$3:$G$203=$T$11),ROW($G$3:$G$203)-ROW($I$2)),ROW(A2)),3),"") -> 
A15: 12 | F15: 12 | J15: ='رصيــد الخــزنــة'!H13 -> 0 | K15: ='رصيــد الخــزنــة'!I13 -> 00:00:00 | S15: =IFERROR(INDEX($G$3:$K$203,SMALL(IF(($G$3:$G$203=$T$11),ROW($G$3:$G$203)-ROW($I$2)),ROW(A3)),2),"") ->  | T15: =IFERROR(INDEX($G$3:$K$203,SMALL(IF(($G$3:$G$203=$T$11),ROW($G$3:$G$203)-ROW($I$2)),ROW(A3)),3),"") -> 
A16: 13 | F16: 13 | J16: ='رصيــد الخــزنــة'!H14 -> 0 | K16: ='رصيــد الخــزنــة'!I14 -> 00:00:00 | S16: =IFERROR(INDEX($G$3:$K$203,SMALL(IF(($G$3:$G$203=$T$11),ROW($G$3:$G$203)-ROW($I$2)),ROW(A4)),2),"") ->  | T16: =IFERROR(INDEX($G$3:$K$203,SMALL(IF(($G$3:$G$203=$T$11),ROW($G$3:$G$203)-ROW($I$2)),ROW(A4)),3),"") -> 
A17: 14 | F17: 14 | J17: ='رصيــد الخــزنــة'!H15 -> 0 | K17: ='رصيــد الخــزنــة'!I15 -> 00:00:00 | S17: =IFERROR(INDEX($G$3:$K$203,SMALL(IF(($G$3:$G$203=$T$11),ROW($G$3:$G$203)-ROW($I$2)),ROW(A5)),2),"") ->  | T17: =IFERROR(INDEX($G$3:$K$203,SMALL(IF(($G$3:$G$203=$T$11),ROW($G$3:$G$203)-ROW($I$2)),ROW(A5)),3),"") -> 
A18: 15 | F18: 15 | J18: ='رصيــد الخــزنــة'!H16 -> 0 | K18: ='رصيــد الخــزنــة'!I16 -> 00:00:00 | S18: =IFERROR(INDEX($G$3:$K$203,SMALL(IF(($G$3:$G$203=$T$11),ROW($G$3:$G$203)-ROW($I$2)),ROW(A6)),2),"") ->  | T18: =IFERROR(INDEX($G$3:$K$203,SMALL(IF(($G$3:$G$203=$T$11),ROW($G$3:$G$203)-ROW($I$2)),ROW(A6)),3),"") -> 
A19: 16 | F19: 16 | J19: ='رصيــد الخــزنــة'!H17 -> 0 | K19: ='رصيــد الخــزنــة'!I17 -> 00:00:00 | S19: =IFERROR(INDEX($G$3:$K$203,SMALL(IF(($G$3:$G$203=$T$11),ROW($G$3:$G$203)-ROW($I$2)),ROW(A7)),2),"") ->  | T19: =IFERROR(INDEX($G$3:$K$203,SMALL(IF(($G$3:$G$203=$T$11),ROW($G$3:$G$203)-ROW($I$2)),ROW(A7)),3),"") -> 
A20: 17 | F20: 17 | J20: ='رصيــد الخــزنــة'!H18 -> 0 | K20: ='رصيــد الخــزنــة'!I18 -> 00:00:00 | S20: =IFERROR(INDEX($G$3:$K$203,SMALL(IF(($G$3:$G$203=$T$11),ROW($G$3:$G$203)-ROW($I$2)),ROW(A8)),2),"") ->  | T20: =IFERROR(INDEX($G$3:$K$203,SMALL(IF(($G$3:$G$203=$T$11),ROW($G$3:$G$203)-ROW($I$2)),ROW(A8)),3),"") -> 
A21: 18 | F21: 18 | J21: ='رصيــد الخــزنــة'!H19 -> 0 | K21: ='رصيــد الخــزنــة'!I19 -> 00:00:00 | S21: =IFERROR(INDEX($G$3:$K$203,SMALL(IF(($G$3:$G$203=$T$11),ROW($G$3:$G$203)-ROW($I$2)),ROW(A9)),2),"") ->  | T21: =IFERROR(INDEX($G$3:$K$203,SMALL(IF(($G$3:$G$203=$T$11),ROW($G$3:$G$203)-ROW($I$2)),ROW(A9)),3),"") -> 
A22: 19 | F22: 19 | J22: ='رصيــد الخــزنــة'!H20 -> 0 | K22: ='رصيــد الخــزنــة'!I20 -> 00:00:00 | S22: =IFERROR(INDEX($G$3:$K$203,SMALL(IF(($G$3:$G$203=$T$11),ROW($G$3:$G$203)-ROW($I$2)),ROW(A10)),2),"") ->  | T22: =IFERROR(INDEX($G$3:$K$203,SMALL(IF(($G$3:$G$203=$T$11),ROW($G$3:$G$203)-ROW($I$2)),ROW(A10)),3),"") -> 
A23: 20 | F23: 20 | J23: ='رصيــد الخــزنــة'!H21 -> 0 | K23: ='رصيــد الخــزنــة'!I21 -> 00:00:00 | S23: =IFERROR(INDEX($G$3:$K$203,SMALL(IF(($G$3:$G$203=$T$11),ROW($G$3:$G$203)-ROW($I$2)),ROW(A11)),2),"") ->  | T23: =IFERROR(INDEX($G$3:$K$203,SMALL(IF(($G$3:$G$203=$T$11),ROW($G$3:$G$203)-ROW($I$2)),ROW(A11)),3),"") -> 
A24: 21 | F24: 21 | J24: ='رصيــد الخــزنــة'!H22 -> 0 | K24: ='رصيــد الخــزنــة'!I22 -> 00:00:00 | S24: =IFERROR(INDEX($G$3:$K$203,SMALL(IF(($G$3:$G$203=$T$11),ROW($G$3:$G$203)-ROW($I$2)),ROW(A12)),2),"") ->  | T24: =IFERROR(INDEX($G$3:$K$203,SMALL(IF(($G$3:$G$203=$T$11),ROW($G$3:$G$203)-ROW($I$2)),ROW(A12)),3),"") -> 
A25: 22 | F25: 22 | J25: ='رصيــد الخــزنــة'!H23 -> 0 | K25: ='رصيــد الخــزنــة'!I23 -> 00:00:00 | S25: =IFERROR(INDEX($G$3:$K$203,SMALL(IF(($G$3:$G$203=$T$11),ROW($G$3:$G$203)-ROW($I$2)),ROW(A13)),2),"") ->  | T25: =IFERROR(INDEX($G$3:$K$203,SMALL(IF(($G$3:$G$203=$T$11),ROW($G$3:$G$203)-ROW($I$2)),ROW(A13)),3),"") -> 
A26: 23 | F26: 23 | J26: ='رصيــد الخــزنــة'!H24 -> 0 | K26: ='رصيــد الخــزنــة'!I24 -> 00:00:00 | S26: =IFERROR(INDEX($G$3:$K$203,SMALL(IF(($G$3:$G$203=$T$11),ROW($G$3:$G$203)-ROW($I$2)),ROW(A14)),2),"") ->  | T26: =IFERROR(INDEX($G$3:$K$203,SMALL(IF(($G$3:$G$203=$T$11),ROW($G$3:$G$203)-ROW($I$2)),ROW(A14)),3),"") -> 
A27: 24 | F27: 24 | G27: بايب | J27: ='رصيــد الخــزنــة'!H25 -> 0 | K27: ='رصيــد الخــزنــة'!I25 -> 00:00:00 | S27: =IFERROR(INDEX($G$3:$K$203,SMALL(IF(($G$3:$G$203=$T$11),ROW($G$3:$G$203)-ROW($I$2)),ROW(A15)),2),"") ->  | T27: =IFERROR(INDEX($G$3:$K$203,SMALL(IF(($G$3:$G$203=$T$11),ROW($G$3:$G$203)-ROW($I$2)),ROW(A15)),3),"") -> 
A28: 25 | F28: 25 | J28: ='رصيــد الخــزنــة'!H26 -> 0 | K28: ='رصيــد الخــزنــة'!I26 -> 00:00:00 | S28: =IFERROR(INDEX($G$3:$K$203,SMALL(IF(($G$3:$G$203=$T$11),ROW($G$3:$G$203)-ROW($I$2)),ROW(A16)),2),"") ->  | T28: =IFERROR(INDEX($G$3:$K$203,SMALL(IF(($G$3:$G$203=$T$11),ROW($G$3:$G$203)-ROW($I$2)),ROW(A16)),3),"") -> 
A29: 26 | F29: 26 | J29: ='رصيــد الخــزنــة'!H27 -> 0 | K29: ='رصيــد الخــزنــة'!I27 -> 00:00:00 | S29: =IFERROR(INDEX($G$3:$K$203,SMALL(IF(($G$3:$G$203=$T$11),ROW($G$3:$G$203)-ROW($I$2)),ROW(A17)),2),"") ->  | T29: =IFERROR(INDEX($G$3:$K$203,SMALL(IF(($G$3:$G$203=$T$11),ROW($G$3:$G$203)-ROW($I$2)),ROW(A17)),3),"") -> 
A30: 27 | F30: 27 | J30: ='رصيــد الخــزنــة'!H28 -> 0 | K30: ='رصيــد الخــزنــة'!I28 -> 00:00:00 | S30: =IFERROR(INDEX($G$3:$K$203,SMALL(IF(($G$3:$G$203=$T$11),ROW($G$3:$G$203)-ROW($I$2)),ROW(A18)),2),"") ->  | T30: =IFERROR(INDEX($G$3:$K$203,SMALL(IF(($G$3:$G$203=$T$11),ROW($G$3:$G$203)-ROW($I$2)),ROW(A18)),3),"") -> 
A31: 28 | F31: 28 | J31: ='رصيــد الخــزنــة'!H29 -> 0 | K31: ='رصيــد الخــزنــة'!I29 -> 00:00:00 | S31: =IFERROR(INDEX($G$3:$K$203,SMALL(IF(($G$3:$G$203=$T$11),ROW($G$3:$G$203)-ROW($I$2)),ROW(A19)),2),"") ->  | T31: =IFERROR(INDEX($G$3:$K$203,SMALL(IF(($G$3:$G$203=$T$11),ROW($G$3:$G$203)-ROW($I$2)),ROW(A19)),3),"") -> 
A32: 29 | F32: 29 | J32: ='رصيــد الخــزنــة'!H30 -> 0 | K32: ='رصيــد الخــزنــة'!I30 -> 00:00:00 | S32: =IFERROR(INDEX($G$3:$K$203,SMALL(IF(($G$3:$G$203=$T$11),ROW($G$3:$G$203)-ROW($I$2)),ROW(A20)),2),"") ->  | T32: =IFERROR(INDEX($G$3:$K$203,SMALL(IF(($G$3:$G$203=$T$11),ROW($G$3:$G$203)-ROW($I$2)),ROW(A20)),3),"") -> 
A33: 30 | F33: 30 | J33: ='رصيــد الخــزنــة'!H31 -> 0 | K33: ='رصيــد الخــزنــة'!I31 -> 00:00:00 | S33: =IFERROR(INDEX($G$3:$K$203,SMALL(IF(($G$3:$G$203=$T$11),ROW($G$3:$G$203)-ROW($I$2)),ROW(A21)),2),"") ->  | T33: =IFERROR(INDEX($G$3:$K$203,SMALL(IF(($G$3:$G$203=$T$11),ROW($G$3:$G$203)-ROW($I$2)),ROW(A21)),3),"") -> 
A34: 31 | F34: 31 | J34: ='رصيــد الخــزنــة'!H32 -> 0 | K34: ='رصيــد الخــزنــة'!I32 -> 00:00:00 | S34: =IFERROR(INDEX($G$3:$K$203,SMALL(IF(($G$3:$G$203=$T$11),ROW($G$3:$G$203)-ROW($I$2)),ROW(A22)),2),"") ->  | T34: =IFERROR(INDEX($G$3:$K$203,SMALL(IF(($G$3:$G$203=$T$11),ROW($G$3:$G$203)-ROW($I$2)),ROW(A22)),3),"") -> 
A35: 32 | F35: 32 | J35: ='رصيــد الخــزنــة'!H33 -> 0 | K35: ='رصيــد الخــزنــة'!I33 -> 00:00:00 | S35: =IFERROR(INDEX($G$3:$K$203,SMALL(IF(($G$3:$G$203=$T$11),ROW($G$3:$G$203)-ROW($I$2)),ROW(A23)),2),"") ->  | T35: =IFERROR(INDEX($G$3:$K$203,SMALL(IF(($G$3:$G$203=$T$11),ROW($G$3:$G$203)-ROW($I$2)),ROW(A23)),3),"") -> 
A36: 33 | F36: 33 | J36: ='رصيــد الخــزنــة'!H34 -> 0 | K36: ='رصيــد الخــزنــة'!I34 -> 00:00:00 | S36: =IFERROR(INDEX($G$3:$K$203,SMALL(IF(($G$3:$G$203=$T$11),ROW($G$3:$G$203)-ROW($I$2)),ROW(A24)),2),"") ->  | T36: =IFERROR(INDEX($G$3:$K$203,SMALL(IF(($G$3:$G$203=$T$11),ROW($G$3:$G$203)-ROW($I$2)),ROW(A24)),3),"") -> 
A37: 34 | F37: 34 | J37: ='رصيــد الخــزنــة'!H35 -> 0 | K37: ='رصيــد الخــزنــة'!I35 -> 00:00:00 | S37: =IFERROR(INDEX($G$3:$K$203,SMALL(IF(($G$3:$G$203=$T$11),ROW($G$3:$G$203)-ROW($I$2)),ROW(A25)),2),"") ->  | T37: =IFERROR(INDEX($G$3:$K$203,SMALL(IF(($G$3:$G$203=$T$11),ROW($G$3:$G$203)-ROW($I$2)),ROW(A25)),3),"") -> 
A38: 35 | F38: 35 | J38: ='رصيــد الخــزنــة'!H36 -> 0 | K38: ='رصيــد الخــزنــة'!I36 -> 00:00:00 | S38: =IFERROR(INDEX($G$3:$K$203,SMALL(IF(($G$3:$G$203=$T$11),ROW($G$3:$G$203)-ROW($I$2)),ROW(A26)),2),"") ->  | T38: =IFERROR(INDEX($G$3:$K$203,SMALL(IF(($G$3:$G$203=$T$11),ROW($G$3:$G$203)-ROW($I$2)),ROW(A26)),3),"") -> 
A39: 36 | F39: 36 | J39: ='رصيــد الخــزنــة'!H37 -> 0 | K39: ='رصيــد الخــزنــة'!I37 -> 00:00:00 | S39: =IFERROR(INDEX($G$3:$K$203,SMALL(IF(($G$3:$G$203=$T$11),ROW($G$3:$G$203)-ROW($I$2)),ROW(A27)),2),"") ->  | T39: =IFERROR(INDEX($G$3:$K$203,SMALL(IF(($G$3:$G$203=$T$11),ROW($G$3:$G$203)-ROW($I$2)),ROW(A27)),3),"") -> 
A40: الإجــمـــــــالـــى | D40: =SUM(D4:D39) -> 0 | F40: 37 | J40: ='رصيــد الخــزنــة'!H38 -> 0 | K40: ='رصيــد الخــزنــة'!I38 -> 00:00:00 | S40: =IFERROR(INDEX($G$3:$K$203,SMALL(IF(($G$3:$G$203=$T$11),ROW($G$3:$G$203)-ROW($I$2)),ROW(A28)),2),"") ->  | T40: =IFERROR(INDEX($G$3:$K$203,SMALL(IF(($G$3:$G$203=$T$11),ROW($G$3:$G$203)-ROW($I$2)),ROW(A28)),3),"") -> 
F41: 38 | J41: ='رصيــد الخــزنــة'!H39 -> 0 | K41: ='رصيــد الخــزنــة'!I39 -> 00:00:00 | S41: =IFERROR(INDEX($G$3:$K$203,SMALL(IF(($G$3:$G$203=$T$11),ROW($G$3:$G$203)-ROW($I$2)),ROW(A29)),2),"") ->  | T41: =IFERROR(INDEX($G$3:$K$203,SMALL(IF(($G$3:$G$203=$T$11),ROW($G$3:$G$203)-ROW($I$2)),ROW(A29)),3),"") -> 
F42: 39 | J42: ='رصيــد الخــزنــة'!H40 -> 0 | K42: ='رصيــد الخــزنــة'!I40 -> 00:00:00 | S42: =IFERROR(INDEX($G$3:$K$203,SMALL(IF(($G$3:$G$203=$T$11),ROW($G$3:$G$203)-ROW($I$2)),ROW(A30)),2),"") ->  | T42: =IFERROR(INDEX($G$3:$K$203,SMALL(IF(($G$3:$G$203=$T$11),ROW($G$3:$G$203)-ROW($I$2)),ROW(A30)),3),"") -> 
F43: 40 | J43: ='رصيــد الخــزنــة'!H41 -> 0 | K43: ='رصيــد الخــزنــة'!I41 -> 00:00:00 | S43: =IFERROR(INDEX($G$3:$K$203,SMALL(IF(($G$3:$G$203=$T$11),ROW($G$3:$G$203)-ROW($I$2)),ROW(A31)),2),"") ->  | T43: =IFERROR(INDEX($G$3:$K$203,SMALL(IF(($G$3:$G$203=$T$11),ROW($G$3:$G$203)-ROW($I$2)),ROW(A31)),3),"") -> 
F44: 41 | J44: ='رصيــد الخــزنــة'!H42 -> 0 | K44: ='رصيــد الخــزنــة'!I42 -> 00:00:00
F45: 42 | J45: ='رصيــد الخــزنــة'!H43 -> 0 | K45: ='رصيــد الخــزنــة'!I43 -> 00:00:00
F46: 43 | J46: ='رصيــد الخــزنــة'!H44 -> 0 | K46: ='رصيــد الخــزنــة'!I44 -> 00:00:00
F47: 44 | J47: ='رصيــد الخــزنــة'!H45 -> 0 | K47: ='رصيــد الخــزنــة'!I45 -> 00:00:00
F48: 45 | J48: ='رصيــد الخــزنــة'!H46 -> 0 | K48: ='رصيــد الخــزنــة'!I46 -> 00:00:00
F49: 46 | J49: ='رصيــد الخــزنــة'!H47 -> 0 | K49: ='رصيــد الخــزنــة'!I47 -> 00:00:00
F50: 47 | J50: ='رصيــد الخــزنــة'!H48 -> 0 | K50: ='رصيــد الخــزنــة'!I48 -> 00:00:00
F51: 48 | J51: ='رصيــد الخــزنــة'!H49 -> 0 | K51: ='رصيــد الخــزنــة'!I49 -> 00:00:00
F52: 49 | J52: ='رصيــد الخــزنــة'!H50 -> 0 | K52: ='رصيــد الخــزنــة'!I50 -> 00:00:00
F53: 50 | J53: ='رصيــد الخــزنــة'!H51 -> 0 | K53: ='رصيــد الخــزنــة'!I51 -> 00:00:00
F54: 51
F55: 52
F56: 53
F57: 54
F58: 55
F59: 56
F60: 57
F61: 58
F62: 59
F63: 60
F64: 61
F65: 62
F66: 63
F67: 64
F68: 65
F69: 66
F70: 67
F71: 68
F72: 69
F73: 70
F74: 71
F75: 72
F76: 73
F77: 74
F78: 75
F79: 76
F80: 77
F81: 78
F82: 79
F83: 80
F84: 81
F85: 82
F86: 83
F87: 84
F88: 85
F89: 86
F90: 87
F91: 88
F92: 89
F93: 90
F94: 91
F95: 92
F96: 93
F97: 94
F98: 95
F99: 96
F100: 97
F101: 98
F102: 99
F103: 100
F104: 101
F105: 102
F106: 103
F107: 104
F108: 105
F109: 106
F110: 107
F111: 108
F112: 109
F113: 110
F114: 111
F115: 112
F116: 113
F117: 114
F118: 115
F119: 116
F120: 117
F121: 118
F122: 119
F123: 120
F124: 121
F125: 122
F126: 123
F127: 124
F128: 125
F129: 126
F130: 127
F131: 128
F132: 129
F133: 130
F134: 131
F135: 132
F136: 133
F137: 134
F138: 135
F139: 136
F140: 137
F141: 138
F142: 139
F143: 140
F144: 141
F145: 142
F146: 143
F147: 144
F148: 145
F149: 146
F150: 147
F151: 148
F152: 149
F153: 150
F154: 151
F155: 152
F156: 153
F157: 154
F158: 155
F159: 156
F160: 157
F161: 158
F162: 159
F163: 160
F164: 161
F165: 162
F166: 163
F167: 164
F168: 165
F169: 166
F170: 167
F171: 168
F172: 169
F173: 170
F174: 171
F175: 172
F176: 173
F177: 174
F178: 175
F179: 176
F180: 177
F181: 178
F182: 179
F183: 180
F184: 181
F185: 182
F186: 183
F187: 184
F188: 185
F189: 186
F190: 187
F191: 188
F192: 189
F193: 190
F194: 191
F195: 192
F196: 193
F197: 194
F198: 195
F199: 196
F200: 197
... 39 more rows

Sheet رصيــد الخــزنــة (hidden)
A1: م | B1: رصيــد الخــزنــة | C1: التاريــخ | D1: شـيـكـــات | E1: نقــديـــة | F1: مشتريــات | G1: مبيعــات | H1: فلوس للعهدة | I1: التاريــخ | J1: فلوس مرتبات | K1: التاريــخ | L1: دفعــات المبــالغ
A2: 1
A3: 2
A4: 3
A5: 4
A6: 5
A7: 6
A8: 7
A9: 8
A10: 9
A11: 10
A12: 11
A13: 12
A14: 13
A15: 14
A16: 15
A17: 16
A18: 17
A19: 18
A20: 19
A21: 20
A22: 21
A23: 22
A24: 23
A25: 24
A26: 25
A27: 26
A28: 27
A29: 28
A30: 29
A31: 30
A32: 31
A33: 32
A34: 33
A35: 34
A36: 35
A37: 36
A38: 37
A39: 38
A40: 39
A41: 40
A42: 41
A43: 42
A44: 43
A45: 44
A46: 45
A47: 46
A48: 47
A49: 48
A50: 49
A51: 50
A52: الإجـمــــــــالــى | D52: =SUM(D2:D51) -> 0 | E52: =SUM(E2:E51) -> 0 | F52: =SUM(F2:F51) -> 0 | G52: =SUM(G2:G51) -> 0 | H52: =SUM(H2:H51) -> 0 | J52: =SUM(J2:J51) -> 0 | L52: =SUM(L2:L51) -> 0
A53: الإجـمــــــــالــى | D53: =D52+E52 -> 0 | E53: =E52-F52+G52-H52-J52+L52 -> 0

Sheet كشف المرتبات (hidden)
A1: كــشــف الحــضــور والغـيـــــــــاب | D1: مصطفى القاضى | G1: أيمن القاضى | J1: بكر كشك | M1: حسن أبو ندا | P1: مصطفى محيى | S1: أشرف | V1: أحمد رمزى | Y1: أبو خالد | AB1: هانى صالح | AE1: إسلام عوض | AH1: ياسر أحمد طايع | AK1: محمد ورد | AN1: محمود شكرى | AQ1: عبـد الله | AT1: أحمد غريب | AW1: صـلاح شــرطـــة | AZ1: محمد مصطفى | BC1: خالد | BF1: محمد أحمد | BI1: سيد الفرشجى | BL1: محمد الحداد | BO1: محمد الفرشجى | BR1: أحمد مصطفى | BS1: أحمد مصطفى | BT1: أحمد مصطفى
A2: م | B2: الـيـــــوم | C2: التــاريـخ | D2: حضور | E2: إنصراف | F2: عــدد | G2: حضور | H2: إنصراف | I2: عــدد | J2: حضور | K2: إنصراف | L2: عــدد | M2: حضور | N2: إنصراف | O2: عــدد | P2: حضور | Q2: إنصراف | R2: عــدد | S2: حضور | T2: إنصراف | U2: عــدد | V2: حضور | W2: إنصراف | X2: عــدد | Y2: حضور | Z2: إنصراف | AA2: عــدد | AB2: حضور | AC2: إنصراف | AD2: عــدد | AE2: حضور | AF2: إنصراف | AG2: عــدد | AH2: حضور | AI2: إنصراف | AJ2: عــدد | AK2: حضور | AL2: إنصراف | AM2: عــدد | AN2: حضور | AO2: إنصراف | AP2: عــدد | AQ2: حضور | AR2: إنصراف | AS2: عــدد | AT2: حضور | AU2: إنصراف | AV2: عــدد | AW2: حضور | AX2: إنصراف | AY2: عــدد | AZ2: حضور | BA2: إنصراف | BB2: عــدد | BC2: حضور | BD2: إنصراف | BE2: عــدد | BF2: حضور | BG2: إنصراف | BH2: عــدد | BI2: حضور | BJ2: إنصراف | BK2: عــدد | BL2: حضور | BM2: إنصراف | BN2: عــدد | BO2: حضور | BP2: إنصراف | BQ2: عــدد | BR2: حضور | BS2: إنصراف | BT2: عــدد | BU2: حضور | BV2: إنصراف | BW2: عــدد | BX2: حضور | BY2: إنصراف | BZ2: عــدد | CA2: حضور | CB2: إنصراف | CC2: عــدد | CD2: حضور | CE2: إنصراف | CF2: عــدد
A3: 1 | B3: الإثـنـيــــن | C3: 2021-04-01 | D3: 08:00:00 | E3: 19:00:00 | F3: =IFERROR(E3-D3,"") -> 11:00:00 | G3: 08:00:00 | H3: 19:00:00 | I3: =IFERROR(H3-G3,"") -> 11:00:00 | J3: 08:00:00 | K3: 19:00:00 | L3: =IFERROR(K3-J3,"") -> 11:00:00 | M3: 08:00:00 | N3: 19:00:00 | O3: =IFERROR(N3-M3,"") -> 11:00:00 | P3: 08:00:00 | Q3: 19:00:00 | R3: =IFERROR(Q3-P3,"") -> 11:00:00 | S3: 08:00:00 | T3: 19:00:00 | U3: =IFERROR(T3-S3,"") -> 11:00:00 | V3: 08:00:00 | W3: 19:00:00 | X3: =IFERROR(W3-V3,"") -> 11:00:00 | Y3: 08:00:00 | Z3: 19:00:00 | AA3: =IFERROR(Z3-Y3,"") -> 11:00:00 | AB3: 08:00:00 | AC3: 19:00:00 | AD3: =IFERROR(AC3-AB3,"") -> 11:00:00 | AE3: 08:00:00 | AF3: 19:00:00 | AG3: =IFERROR(AF3-AE3,"") -> 11:00:00 | AH3: 08:00:00 | AI3: 19:00:00 | AJ3: =IFERROR(AI3-AH3,"") -> 11:00:00 | AK3: 08:00:00 | AL3: 19:00:00 | AM3: =IFERROR(AL3-AK3,"") -> 11:00:00 | AN3: 08:00:00 | AO3: 19:00:00 | AP3: =IFERROR(AO3-AN3,"") -> 11:00:00 | AQ3: 08:00:00 | AR3: 19:00:00 | AS3: =IFERROR(AR3-AQ3,"") -> 11:00:00 | AT3: 08:00:00 | AU3: 19:00:00 | AV3: =IFERROR(AU3-AT3,"") -> 11:00:00 | AW3: 08:00:00 | AX3: 19:00:00 | AY3: =IFERROR(AX3-AW3,"") -> 11:00:00 | AZ3: 08:00:00 | BA3: 19:00:00 | BB3: =IFERROR(BA3-AZ3,"") -> 11:00:00 | BC3: 08:00:00 | BD3: 19:00:00 | BE3: =IFERROR(BD3-BC3,"") -> 11:00:00 | BF3: 08:00:00 | BG3: 19:00:00 | BH3: =IFERROR(BG3-BF3,"") -> 11:00:00 | BI3: 08:00:00 | BJ3: 16:00:00 | BK3: =IFERROR(BJ3-BI3,"") -> 08:00:00 | BL3: 08:00:00 | BM3: 16:00:00 | BN3: =IFERROR(BM3-BL3,"") -> 08:00:00 | BO3: 08:00:00 | BP3: 16:00:00 | BQ3: =IFERROR(BP3-BO3,"") -> 08:00:00 | BR3: 08:00:00 | BS3: 19:00:00 | BT3: =IFERROR(BS3-BR3,"") -> 11:00:00 | BU3: 08:00:00 | BV3: 19:00:00 | BW3: =IFERROR(BV3-BU3,"") -> 11:00:00 | BX3: 08:00:00 | BY3: 19:00:00 | BZ3: =IFERROR(BY3-BX3,"") -> 11:00:00 | CA3: 08:00:00 | CB3: 19:00:00 | CC3: =IFERROR(CB3-CA3,"") -> 11:00:00 | CD3: 08:00:00 | CE3: 19:00:00 | CF3: =IFERROR(CE3-CD3,"") -> 11:00:00
A4: 2 | B4: الـثــلاثــــــاء | C4: 2021-04-02 | F4: 00:00:00 | I4: 00:00:00 | L4: 00:00:00 | O4: 00:00:00 | R4: 00:00:00 | U4: 00:00:00 | X4: 00:00:00 | AA4: 00:00:00 | AD4: 00:00:00 | AG4: 00:00:00 | AJ4: 00:00:00 | AM4: 00:00:00 | AP4: 00:00:00 | AS4: 00:00:00 | AV4: 00:00:00 | AY4: 00:00:00 | BB4: 00:00:00 | BE4: 00:00:00 | BH4: 00:00:00 | BK4: 00:00:00 | BN4: 00:00:00 | BQ4: 00:00:00 | BT4: 00:00:00 | BW4: 00:00:00 | BZ4: 00:00:00 | CC4: 00:00:00 | CF4: 00:00:00
A5: 3 | B5: الأربـعـــــــاء | C5: 2021-04-03 | F5: 00:00:00 | I5: 00:00:00 | L5: 00:00:00 | O5: 00:00:00 | R5: 00:00:00 | U5: 00:00:00 | X5: 00:00:00 | AA5: 00:00:00 | AD5: 00:00:00 | AG5: 00:00:00 | AJ5: 00:00:00 | AM5: 00:00:00 | AP5: 00:00:00 | AS5: 00:00:00 | AV5: 00:00:00 | AY5: 00:00:00 | BB5: 00:00:00 | BE5: 00:00:00 | BH5: 00:00:00 | BK5: 00:00:00 | BN5: 00:00:00 | BQ5: 00:00:00 | BT5: 00:00:00 | BW5: 00:00:00 | BZ5: 00:00:00 | CC5: 00:00:00 | CF5: 00:00:00
A6: 4 | B6: الـخـمــيــس | C6: 2021-04-04 | F6: 00:00:00 | I6: 00:00:00 | L6: 00:00:00 | O6: 00:00:00 | R6: 00:00:00 | U6: 00:00:00 | X6: 00:00:00 | AA6: 00:00:00 | AD6: 00:00:00 | AG6: 00:00:00 | AJ6: 00:00:00 | AM6: 00:00:00 | AP6: 00:00:00 | AS6: 00:00:00 | AV6: 00:00:00 | AY6: 00:00:00 | BB6: 00:00:00 | BE6: 00:00:00 | BH6: 00:00:00 | BK6: 00:00:00 | BN6: 00:00:00 | BQ6: 00:00:00 | BT6: 00:00:00 | BW6: 00:00:00 | BZ6: 00:00:00 | CC6: 00:00:00 | CF6: 00:00:00
A7: 5 | B7: الـجـمـعـــة | C7: 2021-04-05 | F7: 00:00:00 | I7: 00:00:00 | L7: 00:00:00 | O7: 00:00:00 | R7: 00:00:00 | U7: 00:00:00 | X7: 00:00:00 | AA7: 00:00:00 | AD7: 00:00:00 | AG7: 00:00:00 | AJ7: 00:00:00 | AM7: 00:00:00 | AP7: 00:00:00 | AS7: 00:00:00 | AV7: 00:00:00 | AY7: 00:00:00 | BB7: 00:00:00 | BE7: 00:00:00 | BH7: 00:00:00 | BK7: 00:00:00 | BN7: 00:00:00 | BQ7: 00:00:00 | BT7: 00:00:00 | BW7: 00:00:00 | BZ7: 00:00:00 | CC7: 00:00:00 | CF7: 00:00:00
A8: 6 | B8: الـســبــــت | C8: 2021-04-06 | F8: 00:00:00 | I8: 00:00:00 | L8: 00:00:00 | O8: 00:00:00 | R8: 00:00:00 | U8: 00:00:00 | X8: 00:00:00 | AA8: 00:00:00 | AD8: 00:00:00 | AG8: 00:00:00 | AJ8: 00:00:00 | AM8: 00:00:00 | AP8: 00:00:00 | AS8: 00:00:00 | AV8: 00:00:00 | AY8: 00:00:00 | BB8: 00:00:00 | BE8: 00:00:00 | BH8: 00:00:00 | BK8: 00:00:00 | BN8: 00:00:00 | BQ8: 00:00:00 | BT8: 00:00:00 | BW8: 00:00:00 | BZ8: 00:00:00 | CC8: 00:00:00 | CF8: 00:00:00
A9: 7 | B9: الأحــــــد | C9: 2021-04-07 | F9: 00:00:00 | I9: 00:00:00 | L9: 00:00:00 | O9: 00:00:00 | R9: 00:00:00 | U9: 00:00:00 | X9: 00:00:00 | AA9: 00:00:00 | AD9: 00:00:00 | AG9: 00:00:00 | AJ9: 00:00:00 | AM9: 00:00:00 | AP9: 00:00:00 | AS9: 00:00:00 | AV9: 00:00:00 | AY9: 00:00:00 | BB9: 00:00:00 | BE9: 00:00:00 | BH9: 00:00:00 | BK9: 00:00:00 | BN9: 00:00:00 | BQ9: 00:00:00 | BT9: 00:00:00 | BW9: 00:00:00 | BZ9: 00:00:00 | CC9: 00:00:00 | CF9: 00:00:00
A10: 8 | B10: الإثـنـيــــن | C10: 2021-04-08 | F10: 00:00:00 | I10: 00:00:00 | L10: 00:00:00 | O10: 00:00:00 | R10: 00:00:00 | U10: 00:00:00 | X10: 00:00:00 | AA10: 00:00:00 | AD10: 00:00:00 | AG10: 00:00:00 | AJ10: 00:00:00 | AM10: 00:00:00 | AP10: 00:00:00 | AS10: 00:00:00 | AV10: 00:00:00 | AY10: 00:00:00 | BB10: 00:00:00 | BE10: 00:00:00 | BH10: 00:00:00 | BK10: 00:00:00 | BN10: 00:00:00 | BQ10: 00:00:00 | BT10: 00:00:00 | BW10: 00:00:00 | BZ10: 00:00:00 | CC10: 00:00:00 | CF10: 00:00:00
A11: 9 | B11: الـثــلاثــــــاء | C11: 2021-04-09 | F11: 00:00:00 | I11: 00:00:00 | L11: 00:00:00 | O11: 00:00:00 | R11: 00:00:00 | U11: 00:00:00 | X11: 00:00:00 | AA11: 00:00:00 | AD11: 00:00:00 | AG11: 00:00:00 | AJ11: 00:00:00 | AM11: 00:00:00 | AP11: 00:00:00 | AS11: 00:00:00 | AV11: 00:00:00 | AY11: 00:00:00 | BB11: 00:00:00 | BE11: 00:00:00 | BH11: 00:00:00 | BK11: 00:00:00 | BN11: 00:00:00 | BQ11: 00:00:00 | BT11: 00:00:00 | BW11: 00:00:00 | BZ11: 00:00:00 | CC11: 00:00:00 | CF11: 00:00:00
A12: 10 | B12: الأربـعـــــــاء | C12: 2021-04-10 | F12: 00:00:00 | I12: 00:00:00 | L12: 00:00:00 | O12: 00:00:00 | R12: 00:00:00 | U12: 00:00:00 | X12: 00:00:00 | AA12: 00:00:00 | AD12: 00:00:00 | AG12: 00:00:00 | AJ12: 00:00:00 | AM12: 00:00:00 | AP12: 00:00:00 | AS12: 00:00:00 | AV12: 00:00:00 | AY12: 00:00:00 | BB12: 00:00:00 | BE12: 00:00:00 | BH12: 00:00:00 | BK12: 00:00:00 | BN12: 00:00:00 | BQ12: 00:00:00 | BT12: 00:00:00 | BW12: 00:00:00 | BZ12: 00:00:00 | CC12: 00:00:00 | CF12: 00:00:00
A13: 11 | B13: الـخـمــيــس | C13: 2021-04-11 | F13: 00:00:00 | I13: 00:00:00 | L13: 00:00:00 | O13: 00:00:00 | R13: 00:00:00 | U13: 00:00:00 | X13: 00:00:00 | AA13: 00:00:00 | AD13: 00:00:00 | AG13: 00:00:00 | AJ13: 00:00:00 | AM13: 00:00:00 | AP13: 00:00:00 | AS13: 00:00:00 | AV13: 00:00:00 | AY13: 00:00:00 | BB13: 00:00:00 | BE13: 00:00:00 | BH13: 00:00:00 | BK13: 00:00:00 | BN13: 00:00:00 | BQ13: 00:00:00 | BT13: 00:00:00 | BW13: 00:00:00 | BZ13: 00:00:00 | CC13: 00:00:00 | CF13: 00:00:00
A14: 12 | B14: الـجـمـعـــة | C14: 2021-04-12 | F14: 00:00:00 | I14: 00:00:00 | L14: 00:00:00 | O14: 00:00:00 | R14: 00:00:00 | U14: 00:00:00 | X14: 00:00:00 | AA14: 00:00:00 | AD14: 00:00:00 | AG14: 00:00:00 | AJ14: 00:00:00 | AM14: 00:00:00 | AP14: 00:00:00 | AS14: 00:00:00 | AV14: 00:00:00 | AY14: 00:00:00 | BB14: 00:00:00 | BE14: 00:00:00 | BH14: 00:00:00 | BK14: 00:00:00 | BN14: 00:00:00 | BQ14: 00:00:00 | BT14: 00:00:00 | BW14: 00:00:00 | BZ14: 00:00:00 | CC14: 00:00:00 | CF14: 00:00:00
A15: 13 | B15: الـســبــــت | C15: 2021-04-13 | F15: 00:00:00 | I15: 00:00:00 | L15: 00:00:00 | O15: 00:00:00 | R15: 00:00:00 | U15: 00:00:00 | X15: 00:00:00 | AA15: 00:00:00 | AD15: 00:00:00 | AG15: 00:00:00 | AJ15: 00:00:00 | AM15: 00:00:00 | AP15: 00:00:00 | AS15: 00:00:00 | AV15: 00:00:00 | AY15: 00:00:00 | BB15: 00:00:00 | BE15: 00:00:00 | BH15: 00:00:00 | BK15: 00:00:00 | BN15: 00:00:00 | BQ15: 00:00:00 | BT15: 00:00:00 | BW15: 00:00:00 | BZ15: 00:00:00 | CC15: 00:00:00 | CF15: 00:00:00
A16: 14 | B16: الأحــــــد | C16: 2021-04-14 | F16: 00:00:00 | I16: 00:00:00 | L16: 00:00:00 | O16: 00:00:00 | R16: 00:00:00 | U16: 00:00:00 | X16: 00:00:00 | AA16: 00:00:00 | AD16: 00:00:00 | AG16: 00:00:00 | AJ16: 00:00:00 | AM16: 00:00:00 | AP16: 00:00:00 | AS16: 00:00:00 | AV16: 00:00:00 | AY16: 00:00:00 | BB16: 00:00:00 | BE16: 00:00:00 | BH16: 00:00:00 | BK16: 00:00:00 | BN16: 00:00:00 | BQ16: 00:00:00 | BT16: 00:00:00 | BW16: 00:00:00 | BZ16: 00:00:00 | CC16: 00:00:00 | CF16: 00:00:00
A17: 15 | B17: الإثـنـيــــن | C17: 2021-04-15 | F17: 00:00:00 | I17: 00:00:00 | L17: 00:00:00 | O17: 00:00:00 | R17: 00:00:00 | U17: 00:00:00 | X17: 00:00:00 | AA17: 00:00:00 | AD17: 00:00:00 | AG17: 00:00:00 | AJ17: 00:00:00 | AM17: 00:00:00 | AP17: 00:00:00 | AS17: 00:00:00 | AV17: 00:00:00 | AY17: 00:00:00 | BB17: 00:00:00 | BE17: 00:00:00 | BH17: 00:00:00 | BK17: 00:00:00 | BN17: 00:00:00 | BQ17: 00:00:00 | BT17: 00:00:00 | BW17: 00:00:00 | BZ17: 00:00:00 | CC17: 00:00:00 | CF17: 00:00:00
A18: 16 | B18: الـثــلاثــــــاء | C18: 2021-04-16 | F18: 00:00:00 | I18: 00:00:00 | L18: 00:00:00 | O18: 00:00:00 | R18: 00:00:00 | U18: 00:00:00 | X18: 00:00:00 | AA18: 00:00:00 | AD18: 00:00:00 | AG18: 00:00:00 | AJ18: 00:00:00 | AM18: 00:00:00 | AP18: 00:00:00 | AS18: 00:00:00 | AV18: 00:00:00 | AY18: 00:00:00 | BB18: 00:00:00 | BE18: 00:00:00 | BH18: 00:00:00 | BK18: 00:00:00 | BN18: 00:00:00 | BQ18: 00:00:00 | BT18: 00:00:00 | BW18: 00:00:00 | BZ18: 00:00:00 | CC18: 00:00:00 | CF18: 00:00:00
A19: 17 | B19: الأربـعـــــــاء | C19: 2021-04-17 | F19: 00:00:00 | I19: 00:00:00 | L19: 00:00:00 | O19: 00:00:00 | R19: 00:00:00 | U19: 00:00:00 | X19: 00:00:00 | AA19: 00:00:00 | AD19: 00:00:00 | AG19: 00:00:00 | AJ19: 00:00:00 | AM19: 00:00:00 | AP19: 00:00:00 | AS19: 00:00:00 | AV19: 00:00:00 | AY19: 00:00:00 | BB19: 00:00:00 | BE19: 00:00:00 | BH19: 00:00:00 | BK19: 00:00:00 | BN19: 00:00:00 | BQ19: 00:00:00 | BT19: 00:00:00 | BW19: 00:00:00 | BZ19: 00:00:00 | CC19: 00:00:00 | CF19: 00:00:00
A20: 18 | B20: الـخـمــيــس | C20: 2021-04-18 | F20: 00:00:00 | I20: 00:00:00 | L20: 00:00:00 | O20: 00:00:00 | R20: 00:00:00 | U20: 00:00:00 | X20: 00:00:00 | AA20: 00:00:00 | AD20: 00:00:00 | AG20: 00:00:00 | AJ20: 00:00:00 | AM20: 00:00:00 | AP20: 00:00:00 | AS20: 00:00:00 | AV20: 00:00:00 | AY20: 00:00:00 | BB20: 00:00:00 | BE20: 00:00:00 | BH20: 00:00:00 | BK20: 00:00:00 | BN20: 00:00:00 | BQ20: 00:00:00 | BT20: 00:00:00 | BW20: 00:00:00 | BZ20: 00:00:00 | CC20: 00:00:00 | CF20: 00:00:00
A21: 19 | B21: الـجـمـعـــة | C21: 2021-04-19 | F21: 00:00:00 | I21: 00:00:00 | L21: 00:00:00 | O21: 00:00:00 | R21: 00:00:00 | U21: 00:00:00 | X21: 00:00:00 | AA21: 00:00:00 | AD21: 00:00:00 | AG21: 00:00:00 | AJ21: 00:00:00 | AM21: 00:00:00 | AP21: 00:00:00 | AS21: 00:00:00 | AV21: 00:00:00 | AY21: 00:00:00 | BB21: 00:00:00 | BE21: 00:00:00 | BH21: 00:00:00 | BK21: 00:00:00 | BN21: 00:00:00 | BQ21: 00:00:00 | BT21: 00:00:00 | BW21: 00:00:00 | BZ21: 00:00:00 | CC21: 00:00:00 | CF21: 00:00:00
A22: 20 | B22: الـســبــــت | C22: 2021-04-20 | F22: 00:00:00 | I22: 00:00:00 | L22: 00:00:00 | O22: 00:00:00 | R22: 00:00:00 | U22: 00:00:00 | X22: 00:00:00 | AA22: 00:00:00 | AD22: 00:00:00 | AG22: 00:00:00 | AJ22: 00:00:00 | AM22: 00:00:00 | AP22: 00:00:00 | AS22: 00:00:00 | AV22: 00:00:00 | AY22: 00:00:00 | BB22: 00:00:00 | BE22: 00:00:00 | BH22: 00:00:00 | BK22: 00:00:00 | BN22: 00:00:00 | BQ22: 00:00:00 | BT22: 00:00:00 | BW22: 00:00:00 | BZ22: 00:00:00 | CC22: 00:00:00 | CF22: 00:00:00
A23: 21 | B23: الأحــــــد | C23: 2021-04-21 | F23: 00:00:00 | I23: 00:00:00 | L23: 00:00:00 | O23: 00:00:00 | R23: 00:00:00 | U23: 00:00:00 | X23: 00:00:00 | AA23: 00:00:00 | AD23: 00:00:00 | AG23: 00:00:00 | AJ23: 00:00:00 | AM23: 00:00:00 | AP23: 00:00:00 | AS23: 00:00:00 | AV23: 00:00:00 | AY23: 00:00:00 | BB23: 00:00:00 | BE23: 00:00:00 | BH23: 00:00:00 | BK23: 00:00:00 | BN23: 00:00:00 | BQ23: 00:00:00 | BT23: 00:00:00 | BW23: 00:00:00 | BZ23: 00:00:00 | CC23: 00:00:00 | CF23: 00:00:00
A24: 22 | B24: الإثـنـيــــن | C24: 2021-04-22 | F24: 00:00:00 | I24: 00:00:00 | L24: 00:00:00 | O24: 00:00:00 | R24: 00:00:00 | U24: 00:00:00 | X24: 00:00:00 | AA24: 00:00:00 | AD24: 00:00:00 | AG24: 00:00:00 | AJ24: 00:00:00 | AM24: 00:00:00 | AP24: 00:00:00 | AS24: 00:00:00 | AV24: 00:00:00 | AY24: 00:00:00 | BB24: 00:00:00 | BE24: 00:00:00 | BH24: 00:00:00 | BK24: 00:00:00 | BN24: 00:00:00 | BQ24: 00:00:00 | BT24: 00:00:00 | BW24: 00:00:00 | BZ24: 00:00:00 | CC24: 00:00:00 | CF24: 00:00:00
A25: 23 | B25: الـثــلاثــــــاء | C25: 2021-04-23 | F25: 00:00:00 | I25: 00:00:00 | L25: 00:00:00 | O25: 00:00:00 | R25: 00:00:00 | U25: 00:00:00 | X25: 00:00:00 | AA25: 00:00:00 | AD25: 00:00:00 | AG25: 00:00:00 | AJ25: 00:00:00 | AM25: 00:00:00 | AP25: 00:00:00 | AS25: 00:00:00 | AV25: 00:00:00 | AY25: 00:00:00 | BB25: 00:00:00 | BE25: 00:00:00 | BH25: 00:00:00 | BK25: 00:00:00 | BN25: 00:00:00 | BQ25: 00:00:00 | BT25: 00:00:00 | BW25: 00:00:00 | BZ25: 00:00:00 | CC25: 00:00:00 | CF25: 00:00:00
A26: 24 | B26: الأربـعـــــــاء | C26: 2021-04-24 | F26: 00:00:00 | I26: 00:00:00 | L26: 00:00:00 | O26: 00:00:00 | R26: 00:00:00 | U26: 00:00:00 | X26: 00:00:00 | AA26: 00:00:00 | AD26: 00:00:00 | AG26: 00:00:00 | AJ26: 00:00:00 | AM26: 00:00:00 | AP26: 00:00:00 | AS26: 00:00:00 | AV26: 00:00:00 | AY26: 00:00:00 | BB26: 00:00:00 | BE26: 00:00:00 | BH26: 00:00:00 | BK26: 00:00:00 | BN26: 00:00:00 | BQ26: 00:00:00 | BT26: 00:00:00 | BW26: 00:00:00 | BZ26: 00:00:00 | CC26: 00:00:00 | CF26: 00:00:00
A27: 25 | B27: الـخـمــيــس | C27: 2021-04-25 | F27: 00:00:00 | I27: 00:00:00 | L27: 00:00:00 | O27: 00:00:00 | R27: 00:00:00 | U27: 00:00:00 | X27: 00:00:00 | AA27: 00:00:00 | AD27: 00:00:00 | AG27: 00:00:00 | AJ27: 00:00:00 | AM27: 00:00:00 | AP27: 00:00:00 | AS27: 00:00:00 | AV27: 00:00:00 | AY27: 00:00:00 | BB27: 00:00:00 | BE27: 00:00:00 | BH27: 00:00:00 | BK27: 00:00:00 | BN27: 00:00:00 | BQ27: 00:00:00 | BT27: 00:00:00 | BW27: 00:00:00 | BZ27: 00:00:00 | CC27: 00:00:00 | CF27: 00:00:00
A28: 26 | B28: الـجـمـعـــة | C28: 2021-04-26 | F28: 00:00:00 | I28: 00:00:00 | L28: 00:00:00 | O28: 00:00:00 | R28: 00:00:00 | U28: 00:00:00 | X28: 00:00:00 | AA28: 00:00:00 | AD28: 00:00:00 | AG28: 00:00:00 | AJ28: 00:00:00 | AM28: 00:00:00 | AP28: 00:00:00 | AS28: 00:00:00 | AV28: 00:00:00 | AY28: 00:00:00 | BB28: 00:00:00 | BE28: 00:00:00 | BH28: 00:00:00 | BK28: 00:00:00 | BN28: 00:00:00 | BQ28: 00:00:00 | BT28: 00:00:00 | BW28: 00:00:00 | BZ28: 00:00:00 | CC28: 00:00:00 | CF28: 00:00:00
A29: 27 | B29: الـســبــــت | C29: 2021-04-27 | F29: 00:00:00 | I29: 00:00:00 | L29: 00:00:00 | O29: 00:00:00 | R29: 00:00:00 | U29: 00:00:00 | X29: 00:00:00 | AA29: 00:00:00 | AD29: 00:00:00 | AG29: 00:00:00 | AJ29: 00:00:00 | AM29: 00:00:00 | AP29: 00:00:00 | AS29: 00:00:00 | AV29: 00:00:00 | AY29: 00:00:00 | BB29: 00:00:00 | BE29: 00:00:00 | BH29: 00:00:00 | BK29: 00:00:00 | BN29: 00:00:00 | BQ29: 00:00:00 | BT29: 00:00:00 | BW29: 00:00:00 | BZ29: 00:00:00 | CC29: 00:00:00 | CF29: 00:00:00
A30: 28 | B30: الأحــــــد | C30: 2021-04-28 | F30: 00:00:00 | I30: 00:00:00 | L30: 00:00:00 | O30: 00:00:00 | R30: 00:00:00 | U30: 00:00:00 | X30: 00:00:00 | AA30: 00:00:00 | AD30: 00:00:00 | AG30: 00:00:00 | AJ30: 00:00:00 | AM30: 00:00:00 | AP30: 00:00:00 | AS30: 00:00:00 | AV30: 00:00:00 | AY30: 00:00:00 | BB30: 00:00:00 | BE30: 00:00:00 | BH30: 00:00:00 | BK30: 00:00:00 | BN30: 00:00:00 | BQ30: 00:00:00 | BT30: 00:00:00 | BW30: 00:00:00 | BZ30: 00:00:00 | CC30: 00:00:00 | CF30: 00:00:00
A31: 29 | B31: الإثـنـيــــن | C31: 2021-04-29 | F31: 00:00:00 | I31: 00:00:00 | L31: 00:00:00 | O31: 00:00:00 | R31: 00:00:00 | U31: 00:00:00 | X31: 00:00:00 | AA31: 00:00:00 | AD31: 00:00:00 | AG31: 00:00:00 | AJ31: 00:00:00 | AM31: 00:00:00 | AP31: 00:00:00 | AS31: 00:00:00 | AV31: 00:00:00 | AY31: 00:00:00 | BB31: 00:00:00 | BE31: 00:00:00 | BH31: 00:00:00 | BK31: 00:00:00 | BN31: 00:00:00 | BQ31: 00:00:00 | BT31: 00:00:00 | BW31: 00:00:00 | BZ31: 00:00:00 | CC31: 00:00:00 | CF31: 00:00:00
A32: 30 | B32: الـثــلاثــــــاء | C32: 2021-04-30 | F32: 00:00:00 | I32: 00:00:00 | L32: 00:00:00 | O32: 00:00:00 | R32: 00:00:00 | U32: 00:00:00 | X32: 00:00:00 | AA32: 00:00:00 | AD32: 00:00:00 | AG32: 00:00:00 | AJ32: 00:00:00 | AM32: 00:00:00 | AP32: 00:00:00 | AS32: 00:00:00 | AV32: 00:00:00 | AY32: 00:00:00 | BB32: 00:00:00 | BE32: 00:00:00 | BH32: 00:00:00 | BK32: 00:00:00 | BN32: 00:00:00 | BQ32: 00:00:00 | BT32: 00:00:00 | BW32: 00:00:00 | BZ32: 00:00:00 | CC32: 00:00:00 | CF32: 00:00:00
A33: الإجـمــــــالـــى | D33: =SUM(F3:F32) -> 0.4583333333 | G33: =SUM(I3:I32) -> 0.4583333333 | J33: =SUM(L3:L32) -> 0.4583333333 | M33: =SUM(O3:O32) -> 0.4583333333 | P33: =SUM(R3:R32) -> 0.4583333333 | S33: =SUM(U3:U32) -> 0.4583333333 | V33: =SUM(X3:X32) -> 0.4583333333 | Y33: =SUM(AA3:AA32) -> 0.4583333333 | AB33: =SUM(AD3:AD32) -> 0.4583333333 | AE33: =SUM(AG3:AG32) -> 0.4583333333 | AH33: =SUM(AJ3:AJ32) -> 0.4583333333 | AK33: =SUM(AM3:AM32) -> 0.4583333333 | AN33: =SUM(AP3:AP32) -> 0.4583333333 | AQ33: =SUM(AS3:AS32) -> 0.4583333333 | AT33: =SUM(AV3:AV32) -> 0.4583333333 | AW33: =SUM(AY3:AY32) -> 0.4583333333 | AZ33: =SUM(BB3:BB32) -> 0.4583333333 | BC33: =SUM(BE3:BE32) -> 0.4583333333 | BF33: =SUM(BH3:BH32) -> 0.4583333333 | BI33: =SUM(BK3:BK32) -> 0.3333333333 | BL33: =SUM(BN3:BN32) -> 0.3333333333 | BO33: =SUM(BQ3:BQ32) -> 0.3333333333 | BR33: =SUM(BT3:BT32) -> 0.4583333333 | BU33: =SUM(BW3:BW32) -> 0.4583333333 | BX33: =SUM(BZ3:BZ32) -> 0.4583333333 | CA33: =SUM(CC3:CC32) -> 0.4583333333 | CD33: =SUM(CF3:CF32) -> 0.4583333333
A34: صـــــافــى الأيـــــــام | D34: =SUM(D33) -> 0.4583333333 | G34: =SUM(G33) -> 0.4583333333 | J34: =SUM(L33) -> 0 | M34: =SUM(O33) -> 0 | P34: =SUM(R33) -> 0 | S34: =SUM(U33) -> 0 | V34: =SUM(X33) -> 0 | Y34: =SUM(AA33) -> 0 | AB34: =SUM(AD33) -> 0 | AE34: =SUM(AG33) -> 0 | AH34: =SUM(AJ33) -> 0 | AK34: =SUM(AM33) -> 0 | AN34: =SUM(AP33) -> 0 | AQ34: =SUM(AS33) -> 0 | AT34: =SUM(AV33) -> 0 | AW34: =SUM(AY33) -> 0 | AZ34: =SUM(BB33) -> 0 | BC34: =SUM(BE33) -> 0 | BF34: =SUM(BH33) -> 0 | BI34: =SUM(BJ33) -> 0 | BL34: =SUM(BM33) -> 0 | BO34: =SUM(BP33) -> 0 | BR34: =SUM(BS33) -> 0 | BU34: =SUM(BV33) -> 0 | BX34: =SUM(BY33) -> 0 | CA34: =SUM(CB33) -> 0 | CD34: =SUM(CE33) -> 0
D35: اجازة | E35: غياب | G35: اجازة | H35: غياب | J35: اجازة | K35: غياب | M35: اجازة | N35: غياب | P35: اجازة | Q35: غياب | S35: اجازة | T35: غياب | V35: اجازة | W35: غياب | Y35: اجازة | Z35: غياب | AB35: اجازة | AC35: غياب | AE35: اجازة | AF35: غياب | AH35: اجازة | AI35: غياب | AK35: اجازة | AL35: غياب | AN35: اجازة | AO35: غياب | AQ35: اجازة | AR35: غياب | AT35: اجازة | AU35: غياب | AW35: اجازة | AX35: غياب | AZ35: اجازة | BA35: غياب | BC35: اجازة | BD35: غياب | BF35: اجازة | BG35: غياب | BI35: اجازة | BJ35: غياب | BL35: اجازة | BM35: غياب | BO35: اجازة | BP35: غياب | BR35: اجازة | BS35: غياب | BU35: اجازة | BV35: غياب | BX35: اجازة | BY35: غياب | CA35: اجازة | CB35: غياب | CD35: اجازة | CE35: غياب
A36: كشــف رواتـــــب المــوظـفـيــن لشهـــــر ( 4 )
A37: م | B37: الإســــــــم | C37: المـرتــب | D37: سـلــفـــة | E37: حافـز ســهــرة | F37: عدد أيام السهرة | G37: اجازة | H37: غياب | I37: نص | J37: خصم يدوى | K37: أكـــــل | L37: إضــافــى | M37: خـصــم غــيـــاب | N37: الإجـمـالـى | P37: خــالص | R37: تــرحـيـــل | S37: خصم شهر 3 | T37: الـديــن
A38: 1 | B38: مصطفى القاضى | C38: 5300 | D38: =$C$101 -> -50 | E38: =C38/30*F38/2 -> 0 | G38: =COUNTIF($D$3:D$32,$G$37) -> 0 | H38: =COUNTIF($E$3:$E$32,$H$37) -> 0 | I38: =COUNTIF($E$3:$E$32,$I$37) -> 0 | J38: =I38*C38/30/2 -> 0 | M38: =H38*C38/30 -> 0 | N38: =C38-D38-M38+E38+L38-K38-J38 -> 5350 | V38: مصطفى القاضى | W38: -50
A39: 2 | B39: أيمن القاضى | C39: 4100 | D39: =$D$101 -> 0 | E39: 0 | G39: =COUNTIF($G$3:G$32,$G$37) -> 0 | H39: =COUNTIF($H$3:H$32,$H$37) -> 0 | I39: =COUNTIF($H$3:I$32,$I$37) -> 0 | J39: 0 | M39: 0 | N39: 4100 | R39: =T39-S39 -> 400 | S39: 1000 | T39: 1400 | V39: أيمن القاضى | W39: 100
A40: 3 | B40: بكر كشك | C40: 4000 | D40: =$E$101 -> 0 | E40: 0 | G40: =COUNTIF($J$3:J$32,$G$37) -> 0 | H40: =COUNTIF($K$3:K$32,$H$37) -> 0 | I40: =COUNTIF($K$3:L$32,$I$37) -> 0 | J40: 0 | M40: 0 | N40: 4000 | R40: =T40-S40 -> 9347 | T40: 9347 | V40: بكر كشك | W40: 150
A41: 4 | B41: حسن أبو ندا | C41: 3350 | D41: =$F$101 -> 0 | E41: 0 | G41: =COUNTIF($M$3:M$32,$G$37) -> 0 | H41: =COUNTIF($N$3:N$32,$H$37) -> 0 | I41: =COUNTIF($N$3:O$32,$I$37) -> 0 | J41: 0 | M41: 0 | N41: 3350 | V41: حسن أبو ندا | W41: 200
A42: 5 | B42: مصطفى محيى | C42: 3600 | D42: =$G$101 -> 0 | E42: 0 | G42: =COUNTIF($P$3:P$32,$G$37) -> 0 | H42: =COUNTIF($Q$3:Q$32,$H$37) -> 0 | I42: =COUNTIF($Q$3:R$32,$I$37) -> 0 | J42: 0 | M42: 0 | N42: 3600 | V42: مصطفى محيى | W42: 250
A43: 6 | B43: أشرف | C43: 2900 | D43: =$H$101 -> 0 | E43: 0 | G43: =COUNTIF($S$3:S$32,$G$37) -> 0 | H43: =COUNTIF($T$3:T$32,$H$37) -> 0 | I43: =COUNTIF($T$3:U$32,$I$37) -> 0 | J43: 0 | M43: 0 | N43: 2900 | V43: أشرف | W43: 300
A44: 7 | B44: أحمد رمزى | C44: 2900 | D44: =$I$101 -> 0 | E44: 0 | G44: =COUNTIF($V$3:V$32,$G$37) -> 0 | H44: =COUNTIF($W$3:W$32,$H$37) -> 0 | I44: =COUNTIF($W$3:X$32,$I$37) -> 0 | J44: 0 | M44: 0 | N44: 2900 | R44: =T44-S44 -> 1440 | T44: 1440 | V44: أحمد رمزى | W44: 350
A45: 8 | B45: أبو خالد | C45: 2500 | D45: =$J$101 -> 0 | E45: 0 | G45: =COUNTIF($Y$3:Y$32,$G$37) -> 0 | H45: =COUNTIF($Z$3:Z$32,$H$37) -> 0 | I45: =COUNTIF($Z$3:AA$32,$I$37) -> 0 | J45: 0 | M45: 0 | N45: 2500 | V45: أبو خالد | W45: 400
A46: 9 | B46: هانى صالح | C46: 2700 | D46: =$K$101 -> 0 | E46: 0 | G46: =COUNTIF($AB$3:AB$32,$G$37) -> 0 | H46: =COUNTIF($AC$3:AC$32,$H$37) -> 0 | I46: =COUNTIF($AC$3:AD$32,$I$37) -> 0 | J46: 0 | M46: 0 | N46: 2700 | V46: هانى صالح | W46: 450
A47: 10 | B47: إسلام عــوض | C47: 2600 | D47: =$L$101 -> 0 | E47: 0 | G47: =COUNTIF($AE$3:AE$32,$G$37) -> 0 | H47: =COUNTIF($AF$3:AF$32,$H$37) -> 0 | I47: =COUNTIF($AF$3:AG$32,$I$37) -> 0 | J47: 0 | M47: 0 | N47: 2600 | R47: =T47-S47 -> 2400 | S47: 500 | T47: 2900 | V47: إسلام عــوض | W47: 500
A48: 11 | B48: ياسر أحمد طايع | C48: 2500 | D48: =$M$101 -> 0 | E48: 0 | G48: =COUNTIF($AH$3:AH$32,$G$37) -> 0 | H48: =COUNTIF($AI$3:AI$32,$H$37) -> 0 | I48: =COUNTIF($AI$3:AJ$32,$I$37) -> 0 | J48: 0 | M48: 0 | N48: 2500 | V48: ياسر أحمد طايع | W48: 550
A49: 12 | B49: محمد ورد | C49: 1800 | D49: =$N$101 -> 0 | E49: 0 | G49: =COUNTIF($AK$3:AK$32,$G$37) -> 0 | H49: =COUNTIF($AL$3:AL$32,$H$37) -> 0 | I49: =COUNTIF($AL$3:AM$32,$I$37) -> 0 | J49: 0 | M49: 0 | N49: 1800 | V49: محمد ورد | W49: 600
A50: 13 | B50: محمود شكرى | C50: 2700 | D50: =$O$101 -> 0 | E50: 0 | G50: =COUNTIF($AN$3:AN$32,$G$37) -> 0 | H50: =COUNTIF($AO$3:AO$32,$H$37) -> 0 | I50: =COUNTIF($AO$3:AP$32,$I$37) -> 0 | J50: 0 | M50: 0 | N50: 2700 | V50: محمود شكرى | W50: 650
A51: 14 | B51: عبـد الله | C51: 1800 | D51: =$P$101 -> 0 | E51: 0 | G51: =COUNTIF($AQ$3:AQ$32,$G$37) -> 0 | H51: =COUNTIF($AR$3:AR$32,$H$37) -> 0 | I51: =COUNTIF($AR$3:AS$32,$I$37) -> 0 | J51: 0 | M51: 0 | N51: 1800 | V51: عبـد الله | W51: 700
A52: 15 | B52: أحمد غريب | C52: 1800 | D52: =$Q$101 -> 0 | E52: 0 | G52: =COUNTIF($AT$3:AT$32,$G$37) -> 0 | H52: =COUNTIF($AU$3:AU$32,$H$37) -> 0 | I52: =COUNTIF($AU$3:AV$32,$I$37) -> 0 | J52: 0 | M52: 0 | N52: 1800 | V52: أحمد غريب | W52: 750
A53: 16 | B53: صـلاح شــرطـــة | C53: =Q53/9*80 -> 4.074074074 | D53: =$R$101 -> 0 | E53: 0 | G53: =COUNTIF($AW$3:AW$32,$G$37) -> 0 | H53: =COUNTIF($AX$3:AX$32,$H$37) -> 0 | I53: =COUNTIF($AX$3:AY$32,$I$37) -> 0 | J53: 0 | M53: 0 | Q53: =$AW$33 -> 0.4583333333 | V53: صـلاح شــرطـــة | W53: 800
A54: 17 | B54: محمد مصطفى | C54: 2500 | D54: =$S$101 -> 0 | E54: 0 | G54: =COUNTIF($AZ$3:AZ$32,$G$37) -> 0 | H54: =COUNTIF($BA$3:BA$32,$H$37) -> 0 | I54: =COUNTIF($BA$3:BB$32,$I$37) -> 0 | J54: 0 | M54: 0 | N54: =C54-D54-M54+E54+L54-K54-J54 -> 2500 | V54: محمد مصطفى | W54: 850
A55: 18 | B55: خالد | C55: 1800 | D55: =$T$101 -> 0 | E55: 0 | G55: =COUNTIF($BC$3:BC$32,$G$37) -> 0 | H55: =COUNTIF($BD$3:BD$32,$H$37) -> 0 | I55: =COUNTIF($BD$3:BE$32,$I$37) -> 0 | J55: 0 | M55: 0 | N55: 1800 | V55: خالد | W55: 900
A56: 19 | B56: محمد أحمد | C56: 1800 | D56: =$U$101 -> 0 | E56: 0 | G56: =COUNTIF($BF$3:BF$32,$G$37) -> 0 | H56: =COUNTIF($BG$3:BG$32,$H$37) -> 0 | I56: =COUNTIF($BG$3:BH$32,$I$37) -> 0 | J56: 0 | M56: 0 | N56: 1800 | V56: محمد أحمد | W56: 950
A57: 20 | B57: سيد الفرشجى | C57: 4300 | D57: =$V$101 -> 0 | E57: 0 | G57: =COUNTIF($BI$3:BI$32,$G$37) -> 0 | H57: =COUNTIF($BJ$3:BJ$32,$H$37) -> 0 | I57: =COUNTIF($BJ$3:BK$32,$I$37) -> 0 | J57: 0 | M57: 0 | N57: 4300 | R57: =T57-S57 -> 500 | S57: 500 | T57: 1000 | V57: سيد الفرشجى | W57: 1000
A58: 21 | B58: محمد الحداد | C58: 3250 | D58: =$W$101 -> 0 | E58: 0 | G58: =COUNTIF($BL$3:BL$32,$G$37) -> 0 | H58: =COUNTIF($BM$3:BM$32,$H$37) -> 0 | I58: =COUNTIF($BM$3:BN$32,$I$37) -> 0 | J58: 0 | M58: 0 | N58: 3250 | V58: محمد الحداد | W58: 1050
A59: 22 | B59: محمد الفرشجى | C59: 3650 | D59: =$X$101 -> 0 | E59: 0 | G59: =COUNTIF($BO$3:BO$32,$G$37) -> 0 | H59: =COUNTIF($BP$3:BP$32,$H$37) -> 0 | I59: =COUNTIF($BP$3:BQ$32,$I$37) -> 0 | J59: 0 | M59: 0 | N59: 3650 | V59: محمد الفرشجى | W59: 1100
A60: 23 | E60: 0 | G60: =COUNTIF($BR$3:BR$32,$G$37) -> 0 | H60: =COUNTIF($BS$3:BS$32,$H$37) -> 0 | I60: =COUNTIF($BS$3:BT$32,$I$37) -> 0 | J60: 0 | M60: 0 | N60: 0 | V60: محمود | W60: 1100
A61: 24 | E61: 0 | G61: =COUNTIF($BU$3:BU$32,$G$37) -> 0 | H61: =COUNTIF($BV$3:BV$32,$H$37) -> 0 | I61: =COUNTIF($BV$3:BW$32,$I$37) -> 0 | J61: 0 | M61: 0 | N61: 0
A62: 25 | I62: =COUNTIF($BY$3:BZ$32,$I$37) -> 0 | J62: 0 | M62: 0 | N62: 0
A63: 26 | I63: =COUNTIF($CB$3:CC$32,$I$37) -> 0 | J63: 0 | M63: 0 | N63: 0
A64: 27 | I64: =COUNTIF($CE$3:CF$32,$I$37) -> 0 | J64: 0 | M64: 0 | N64: 0
A65: 28 | M65: 0 | N65: 0
A66: 29 | M66: 0 | N66: 0
A67: 30 | M67: 0 | N67: 0
A68: 31 | M68: 0 | N68: 0
A69: 32 | M69: 0 | N69: 0
A70: 33 | M70: 0 | N70: 0
A71: 34 | M71: 0 | N71: 0
A72: 35 | E72: =C72/30*F72/2 -> 0 | G72: =COUNTIF($BX$3:BX$32,$G$37) -> 0 | H72: =COUNTIF($BY$3:BY$32,$H$37) -> 0 | M72: 0 | N72: 0
A73: 36 | E73: =C73/30*F73/2 -> 0 | G73: =COUNTIF($CA$3:CA$32,$G$37) -> 0 | H73: =COUNTIF($CB$3:CB$32,$H$37) -> 0 | M73: 0 | N73: 0
A74: 37 | E74: =C74/30*F74/2 -> 0 | G74: =COUNTIF($CD$3:CD$32,$G$37) -> 0 | H74: =COUNTIF($CE$3:CE$32,$H$37) -> 0 | M74: 0 | N74: 0
A75: 38 | B75: محمـود | C75: 2500 | D75: =$Y$101 -> 0 | N75: 2500
A76: 39 | B76: مسجد المصطفى | C76: 1200 | N76: 1200
A77: 40 | B77: عمرو | C77: 500 | E77: =C77/30*F77/2 -> 0 | N77: 500
A78: الإجـمــــــالــى | C78: =SUM(C38:C77) -> 66054.07407 | D78: =SUM(D38:D77) -> -50 | M78: =SUM(M38:M77) -> 0 | N78: =SUMIF($N$38:$O$77,">0") -> 66100
B80: الـبـنـــد | C80: مصطفى القاضى | D80: أيمن القاضى | E80: بكر كشك | F80: حسن أبو ندا | G80: مصطفى محيى | H80: أشرف | I80: أحمد رمزى | J80: أبو خالد | K80: هانى صالح | L80: إسلام عــوض | M80: ياسر أحمد طايع | N80: محمد ورد | O80: محمود شكرى | P80: عبـد الله | Q80: أحمد غريب | R80: صـلاح شــرطـــة | S80: محمد مصطفى | T80: خالد | U80: محمد أحمد | V80: سيد الفرشجى | W80: محمد الحداد | X80: محمد الفرشجى | Y80: محمود
B81: باقى الشهر السابق | C81: =SUMIF($W$38,"<0") -> -50 | D81: =SUMIF($W$39,"<0") -> 0 | E81: =SUMIF($W$40,"<0") -> 0 | F81: =SUMIF($W$41,"<0") -> 0 | G81: =SUMIF($W$42,"<0") -> 0 | H81: =SUMIF($W$43,"<0") -> 0 | I81: =SUMIF($W$44,"<0") -> 0 | J81: =SUMIF($W$45,"<0") -> 0 | K81: =SUMIF($W$46,"<0") -> 0 | L81: =SUMIF($W$47,"<0") -> 0 | M81: =SUMIF($W$48,"<0") -> 0 | N81: =SUMIF($W$49,"<0") -> 0 | O81: =SUMIF($W$50,"<0") -> 0 | P81: =SUMIF($W$51,"<0") -> 0 | Q81: =SUMIF($W$52,"<0") -> 0 | R81: =SUMIF($W$53,"<0") -> 0 | S81: =SUMIF($W$50,"<0") -> 0 | T81: 0 | U81: 0 | V81: 0 | W81: 0 | X81: 0 | Y81: 0
B82: تــرحــيــل من المصروفات | C82: ='مــصــــروفــــــات اليومـيـــة'!$O$3 -> 0 | D82: ='مــصــــروفــــــات اليومـيـــة'!$O$4 -> 0 | E82: ='مــصــــروفــــــات اليومـيـــة'!$O$5 -> 0 | F82: ='مــصــــروفــــــات اليومـيـــة'!$O$6 -> 0 | G82: ='مــصــــروفــــــات اليومـيـــة'!$O$7 -> 0 | H82: ='مــصــــروفــــــات اليومـيـــة'!$O$8 -> 0 | I82: ='مــصــــروفــــــات اليومـيـــة'!$O$9 -> 0 | J82: ='مــصــــروفــــــات اليومـيـــة'!$O$10 -> 0 | K82: ='مــصــــروفــــــات اليومـيـــة'!$O$11 -> 0 | L82: ='مــصــــروفــــــات اليومـيـــة'!$O$12 -> 0 | M82: ='مــصــــروفــــــات اليومـيـــة'!$O$13 -> 0 | N82: ='مــصــــروفــــــات اليومـيـــة'!$O$14 -> 0 | O82: ='مــصــــروفــــــات اليومـيـــة'!$O$15 -> 0 | P82: ='مــصــــروفــــــات اليومـيـــة'!$O$16 -> 0 | Q82: ='مــصــــروفــــــات اليومـيـــة'!$O$17 -> 0 | R82: ='مــصــــروفــــــات اليومـيـــة'!$O$18 -> 0 | S82: ='مــصــــروفــــــات اليومـيـــة'!$O$19 -> 0 | T82: ='مــصــــروفــــــات اليومـيـــة'!$O$20 -> 0 | U82: ='مــصــــروفــــــات اليومـيـــة'!$O$21 -> 0 | V82: ='مــصــــروفــــــات اليومـيـــة'!$O$22 -> 0 | W82: ='مــصــــروفــــــات اليومـيـــة'!$O$23 -> 0 | X82: ='مــصــــروفــــــات اليومـيـــة'!$O$24 -> 0 | Y82: ='مــصــــروفــــــات اليومـيـــة'!$O$29 -> 0
B83: سـلــفــــة
B84: سـلــفــــة
B85: سـلــفــــة
B86: سـلــفــــة
B87: سـلــفــــة
B88: سـلــفــــة
B89: سـلــفــــة
B90: سـلــفــــة
B91: سـلــفــــة
B92: سـلــفــــة
B93: سـلــفــــة
B94: سـلــفــــة
B95: سـلــفــــة
B96: سـلــفــــة
B97: سـلــفــــة
B98: سـلــفــــة
B99: سـلــفــــة
B100: سـلــفــــة
B101: الإجـمــــالـى | C101: =SUM(C81:C100) -> -50 | D101: =SUM(D81:D100) -> 0 | E101: 0 | F101: 0 | G101: 0 | H101: 0 | I101: 0 | J101: 0 | K101: 0 | L101: 0 | M101: 0 | N101: 0 | O101: 0 | P101: 0 | Q101: 0 | R101: 0 | S101: 0 | T101: 0 | U101: 0 | V101: 0 | W101: 0 | X101: =SUM(X81:X100) -> 0 | Y101: 0 | Z101: 0 | AA101: 0 | AB101: 0 | AC101: =SUM(AC81:AC100) -> 0 | AD101: 0 | AE101: 0 | AF101: 0 | AG101: 0
A103: 1
A104: 2 | B104: محمد ورد | C104: 1800
A105: 3 | B105: محمود شكرى | C105: 2700
A106: 4 | B106: عبـد الله | C106: 1800
A107: 5 | B107: صـلاح شــرطـــة | C107: 9
A108: 6 | B108: أحمد غريب | C108: 1800
A109: 7 | B109: محمد شريــف | C109: 1800
A110: 8 | B110: ياسر أحمد طايع | C110: 2500
A111: 9 | B111: يوسف مصطفى | C111: 1200
A112: 10 | B112: عبد الحميد | C112: 960
A113: 11 | B113: مـحـمـد كـمـال | C113: 2000
A114: 12 | B114: سيد الفرشجى | C114: 4300
A115: 13 | B115: محمد الحداد | C115: 3250
A116: 14 | B116: محمد الفرشجى | C116: 3500
A117: 15
A118: 16
A119: 17
A120: 18
A121: 19
A122: 20
A123: 21
A124: 22
A125: 23

Sheet مشتريات ومبيعـات (hidden)
A1: مبـيـعــــات | J1: مشتريــات
A2: م | B2: العـمــيــل | C2: الـصــنـــف | D2: الـتــاريــخ | E2: الـعــدد | F2: سعـر الوحـدة | G2: دفــع | H2: الإجـمــالــى | J2: م | K2: العـمــيــل | L2: الـصــنـــف | M2: الـتــاريــخ | N2: الـعــدد | O2: سعـر الوحـدة | P2: دفـعــنــا | Q2: عـليـنـا | R2: الإجـمــــالــى
A3: 1 | H3: =E3*F3 -> 0 | J3: 1 | Q3: =R3-P3 -> 0 | R3: =N3*O3 -> 0
A4: 2 | H4: 0 | J4: 2 | R4: 0
A5: 3 | H5: 0 | J5: 3 | R5: 0
A6: 4 | H6: 0 | J6: 4 | R6: 0
A7: 5 | H7: 0 | J7: 5 | R7: =N7*O7-P7 -> 0
A8: 6 | H8: 0 | J8: 6 | R8: =N8*O8 -> 0
A9: 7 | H9: 0 | J9: 7 | Q9: =R9-P9 -> 0 | R9: 0
A10: 8 | H10: 0 | J10: 8 | R10: =N10*O10-P10 -> 0
A11: 9 | H11: 0 | J11: 9 | R11: =N11*O11-P11 -> 0
A12: 10 | H12: 0 | J12: 10 | R12: =N12*O12-P12 -> 0
A13: 11 | H13: 0 | J13: 11 | R13: 0
A14: 12 | H14: 0 | J14: 12 | R14: 0
A15: 13 | H15: 0 | J15: 13 | R15: 0
A16: 14 | H16: 0 | J16: 14 | R16: 0
A17: 15 | H17: 0 | J17: 15 | R17: 0
A18: 16 | H18: 0 | J18: 16 | R18: 0
A19: 17 | H19: 0 | J19: 17 | R19: 0
A20: 18 | H20: 0 | J20: 18 | R20: 0
A21: 19 | H21: 0 | J21: 19 | R21: 0
A22: 20 | H22: 0 | J22: 20 | R22: 0
A23: 21 | H23: 0 | J23: 21 | R23: 0
A24: 22 | H24: 0 | J24: 22 | R24: 0
A25: 23 | H25: 0 | J25: 23 | R25: 0
A26: 24 | B26: محمد الشناوى | C26: هــلال مسـمـــار إســلامــى | F26: 3 | H26: 0 | J26: 24 | R26: 0
A27: 25 | B27: عـم شـعــبــان | C27: مفـصــلـــة 8 سم نيكــل | F27: 11 | H27: 0 | J27: 25 | R27: 0
A28: 26 | B28: محمد المحمدى | C28: كـالــون | F28: 10 | H28: 0 | J28: 26 | K28: م/محمد بسيونى | L28: SURTEC 104 | O28: 136.8 | R28: 0
A29: 27 | B29: محمد ياسر | C29: مفتــاح كــالــون | F29: 2.5 | H29: 0 | J29: 27 | K29: مــاهـــــر | L29: خــام زامــا | O29: 42 | R29: 0
A30: 28 | B30: حج هشام | C30: خبث | F30: 14 | H30: =E30*F30 -> 0 | J30: 28 | K30: عـلى رفعت | R30: 0
A31: 29 | B31: محمود أوطة | C31: تـــراب | F31: 3 | H31: 0 | J31: 29 | K31: الحاج سعـد | R31: 0
A32: 30 | B32: مصنع قنديل | C32: طقم إغلاق | F32: 10 | H32: =E32*F32 -> 0 | J32: 30 | K32: الحاج سمير | R32: 0
A33: الإجـمــــــــالــى | G33: =SUM(G3:G32) -> 0 | H33: =SUM(H3:H32) -> 0 | J33: الإجـمــــــــالــى | P33: =SUM(P3:P32) -> 0 | Q33: =SUM(Q3:Q32) -> 0 | R33: =SUM(R3:R32) -> 0

Sheet بـضـــاعـــــة الـمـخـــــــزن (hidden)
A1: بـضـــاعـــــة الـمـخـــــــزن
A2: م | B2: الـصــنــــــــف | C2: الـتــاريـــخ | D2: العـــدد | E2: خــرج | F2: الـمتـبـقــى | G2: الـحــالـــة
A3: 1 | B3: طـقـــم إغــــلاق | C3: 2021-02-06 | F3: =D3-E3 -> 0 | G3: =IF(F3=0,"نـفــذ") -> نـفــذ
A4: 2 | B4: حامل إستانلس | C4: 2021-02-06 | F4: =D4-E4 -> 0 | G4: =IF(F4=0,"نـفــذ") -> نـفــذ
A5: 3 | F5: 0 | G5: =IF(F5=0,"نـفــذ") -> نـفــذ
A6: 4 | F6: 0 | G6: نـفــذ
A7: 5 | F7: 0 | G7: نـفــذ
A8: 6 | F8: 0 | G8: نـفــذ
A9: 7 | F9: 0 | G9: نـفــذ
A10: 8 | F10: 0 | G10: نـفــذ
A11: 9 | F11: 0 | G11: نـفــذ
A12: 10 | F12: 0 | G12: نـفــذ
A13: 11 | F13: 0 | G13: نـفــذ
A14: 12 | F14: 0 | G14: نـفــذ
A15: 13 | F15: 0 | G15: نـفــذ
A16: 14 | F16: 0 | G16: نـفــذ
A17: 15 | F17: 0 | G17: نـفــذ
A18: الإجـمــــــــالــى | F18: =SUM(F3:F17) -> 0
E23: قــائـمــة منـسـدلــة | F23: =SUM(xx_5[المبلغ]) -> 0
E24: اختر إسـم الموظـف | F24: أيمن القاضى | I24: =SUM(x_6[الاجمالى]) -> 0
E25: التاريخ | F25: المبلغ | H25: ادراج اسامى الموظفين | I25: الاجمالى
E26: =IFERROR(INDEX($G$3:$K$174,SMALL(IF(($G$3:$G$174=$H$215),ROW($G$3:$G$174)-ROW($I$2)),ROW(#REF!)),2),"") ->  | F26: =IFERROR(INDEX($G$3:$K$174,SMALL(IF(($G$3:$G$174=$H$215),ROW($G$3:$G$174)-ROW($I$2)),ROW(#REF!)),3),"") ->  | H26: مصطفى القاضى | I26: =SUMIF($G$3:$G$174,x_6[[#This Row],[ادراج اسامى الموظفين]],$I$3:$I$174) -> 0
E27: =IFERROR(INDEX($G$3:$K$174,SMALL(IF(($G$3:$G$174=$H$215),ROW($G$3:$G$174)-ROW($I$2)),ROW(#REF!)),2),"") ->  | F27: =IFERROR(INDEX($G$3:$K$174,SMALL(IF(($G$3:$G$174=$H$215),ROW($G$3:$G$174)-ROW($I$2)),ROW(#REF!)),3),"") ->  | H27: أيمن القاضى | I27: =SUMIF($G$3:$G$174,x_6[[#This Row],[ادراج اسامى الموظفين]],$I$3:$I$174) -> 0
E28: =IFERROR(INDEX($G$3:$K$174,SMALL(IF(($G$3:$G$174=$H$215),ROW($G$3:$G$174)-ROW($I$2)),ROW(#REF!)),2),"") ->  | F28: =IFERROR(INDEX($G$3:$K$174,SMALL(IF(($G$3:$G$174=$H$215),ROW($G$3:$G$174)-ROW($I$2)),ROW(#REF!)),3),"") ->  | H28: بكر كشك | I28: =SUMIF($G$3:$G$174,x_6[[#This Row],[ادراج اسامى الموظفين]],$I$3:$I$174) -> 0
E29: =IFERROR(INDEX($G$3:$K$174,SMALL(IF(($G$3:$G$174=$H$215),ROW($G$3:$G$174)-ROW($I$2)),ROW(#REF!)),2),"") ->  | F29: =IFERROR(INDEX($G$3:$K$174,SMALL(IF(($G$3:$G$174=$H$215),ROW($G$3:$G$174)-ROW($I$2)),ROW(#REF!)),3),"") ->  | H29: حسن أبو ندا | I29: =SUMIF($G$3:$G$174,x_6[[#This Row],[ادراج اسامى الموظفين]],$I$3:$I$174) -> 0
E30: =IFERROR(INDEX($G$3:$K$174,SMALL(IF(($G$3:$G$174=$H$215),ROW($G$3:$G$174)-ROW($I$2)),ROW(#REF!)),2),"") ->  | F30: =IFERROR(INDEX($G$3:$K$174,SMALL(IF(($G$3:$G$174=$H$215),ROW($G$3:$G$174)-ROW($I$2)),ROW(#REF!)),3),"") ->  | H30: مصطفى محيى | I30: =SUMIF($G$3:$G$174,x_6[[#This Row],[ادراج اسامى الموظفين]],$I$3:$I$174) -> 0
E31: =IFERROR(INDEX($G$3:$K$174,SMALL(IF(($G$3:$G$174=$H$215),ROW($G$3:$G$174)-ROW($I$2)),ROW(#REF!)),2),"") ->  | F31: =IFERROR(INDEX($G$3:$K$174,SMALL(IF(($G$3:$G$174=$H$215),ROW($G$3:$G$174)-ROW($I$2)),ROW(#REF!)),3),"") ->  | H31: أشرف | I31: =SUMIF($G$3:$G$174,x_6[[#This Row],[ادراج اسامى الموظفين]],$I$3:$I$174) -> 0
E32: =IFERROR(INDEX($G$3:$K$174,SMALL(IF(($G$3:$G$174=$H$215),ROW($G$3:$G$174)-ROW($I$2)),ROW(#REF!)),2),"") ->  | F32: =IFERROR(INDEX($G$3:$K$174,SMALL(IF(($G$3:$G$174=$H$215),ROW($G$3:$G$174)-ROW($I$2)),ROW(#REF!)),3),"") ->  | H32: أحمد رمزى | I32: =SUMIF($G$3:$G$174,x_6[[#This Row],[ادراج اسامى الموظفين]],$I$3:$I$174) -> 0
E33: =IFERROR(INDEX($G$3:$K$174,SMALL(IF(($G$3:$G$174=$H$215),ROW($G$3:$G$174)-ROW($I$2)),ROW(#REF!)),2),"") ->  | F33: =IFERROR(INDEX($G$3:$K$174,SMALL(IF(($G$3:$G$174=$H$215),ROW($G$3:$G$174)-ROW($I$2)),ROW(#REF!)),3),"") ->  | H33: أبو خالد | I33: =SUMIF($G$3:$G$174,x_6[[#This Row],[ادراج اسامى الموظفين]],$I$3:$I$174) -> 0
E34: =IFERROR(INDEX($G$3:$K$174,SMALL(IF(($G$3:$G$174=$H$215),ROW($G$3:$G$174)-ROW($I$2)),ROW(#REF!)),2),"") ->  | F34: =IFERROR(INDEX($G$3:$K$174,SMALL(IF(($G$3:$G$174=$H$215),ROW($G$3:$G$174)-ROW($I$2)),ROW(#REF!)),3),"") ->  | H34: هانى صالح | I34: =SUMIF($G$3:$G$174,x_6[[#This Row],[ادراج اسامى الموظفين]],$I$3:$I$174) -> 0
E35: =IFERROR(INDEX($G$3:$K$174,SMALL(IF(($G$3:$G$174=$H$215),ROW($G$3:$G$174)-ROW($I$2)),ROW(#REF!)),2),"") ->  | F35: =IFERROR(INDEX($G$3:$K$174,SMALL(IF(($G$3:$G$174=$H$215),ROW($G$3:$G$174)-ROW($I$2)),ROW(#REF!)),3),"") ->  | H35: إسلام عــوض | I35: =SUMIF($G$3:$G$174,x_6[[#This Row],[ادراج اسامى الموظفين]],$I$3:$I$174) -> 0
E36: =IFERROR(INDEX($G$3:$K$174,SMALL(IF(($G$3:$G$174=$H$215),ROW($G$3:$G$174)-ROW($I$2)),ROW(#REF!)),2),"") ->  | F36: =IFERROR(INDEX($G$3:$K$174,SMALL(IF(($G$3:$G$174=$H$215),ROW($G$3:$G$174)-ROW($I$2)),ROW(#REF!)),3),"") ->  | H36: ياسر أحمد طايع | I36: =SUMIF($G$3:$G$174,x_6[[#This Row],[ادراج اسامى الموظفين]],$I$3:$I$174) -> 0
E37: =IFERROR(INDEX($G$3:$K$174,SMALL(IF(($G$3:$G$174=$H$215),ROW($G$3:$G$174)-ROW($I$2)),ROW(#REF!)),2),"") ->  | F37: =IFERROR(INDEX($G$3:$K$174,SMALL(IF(($G$3:$G$174=$H$215),ROW($G$3:$G$174)-ROW($I$2)),ROW(#REF!)),3),"") ->  | H37: محمد ورد | I37: =SUMIF($G$3:$G$174,x_6[[#This Row],[ادراج اسامى الموظفين]],$I$3:$I$174) -> 0
E38: =IFERROR(INDEX($G$3:$K$174,SMALL(IF(($G$3:$G$174=$H$215),ROW($G$3:$G$174)-ROW($I$2)),ROW(#REF!)),2),"") ->  | F38: =IFERROR(INDEX($G$3:$K$174,SMALL(IF(($G$3:$G$174=$H$215),ROW($G$3:$G$174)-ROW($I$2)),ROW(#REF!)),3),"") ->  | H38: محمود شكرى | I38: =SUMIF($G$3:$G$174,x_6[[#This Row],[ادراج اسامى الموظفين]],$I$3:$I$174) -> 0
E39: =IFERROR(INDEX($G$3:$K$174,SMALL(IF(($G$3:$G$174=$H$215),ROW($G$3:$G$174)-ROW($I$2)),ROW(#REF!)),2),"") ->  | F39: =IFERROR(INDEX($G$3:$K$174,SMALL(IF(($G$3:$G$174=$H$215),ROW($G$3:$G$174)-ROW($I$2)),ROW(#REF!)),3),"") ->  | H39: عبـد الله | I39: =SUMIF($G$3:$G$174,x_6[[#This Row],[ادراج اسامى الموظفين]],$I$3:$I$174) -> 0
E40: =IFERROR(INDEX($G$3:$K$174,SMALL(IF(($G$3:$G$174=$H$215),ROW($G$3:$G$174)-ROW($I$2)),ROW(#REF!)),2),"") ->  | F40: =IFERROR(INDEX($G$3:$K$174,SMALL(IF(($G$3:$G$174=$H$215),ROW($G$3:$G$174)-ROW($I$2)),ROW(#REF!)),3),"") ->  | H40: أحمد غريب | I40: =SUMIF($G$3:$G$174,x_6[[#This Row],[ادراج اسامى الموظفين]],$I$3:$I$174) -> 0
E41: =IFERROR(INDEX($G$3:$K$174,SMALL(IF(($G$3:$G$174=$H$215),ROW($G$3:$G$174)-ROW($I$2)),ROW(#REF!)),2),"") ->  | F41: =IFERROR(INDEX($G$3:$K$174,SMALL(IF(($G$3:$G$174=$H$215),ROW($G$3:$G$174)-ROW($I$2)),ROW(#REF!)),3),"") ->  | H41: صـلاح شــرطـــة | I41: =SUMIF($G$3:$G$174,x_6[[#This Row],[ادراج اسامى الموظفين]],$I$3:$I$174) -> 0
E42: =IFERROR(INDEX($G$3:$K$174,SMALL(IF(($G$3:$G$174=$H$215),ROW($G$3:$G$174)-ROW($I$2)),ROW(#REF!)),2),"") ->  | F42: =IFERROR(INDEX($G$3:$K$174,SMALL(IF(($G$3:$G$174=$H$215),ROW($G$3:$G$174)-ROW($I$2)),ROW(#REF!)),3),"") ->  | H42: مـحـمـد كـمـال | I42: =SUMIF($G$3:$G$174,x_6[[#This Row],[ادراج اسامى الموظفين]],$I$3:$I$174) -> 0
E43: =IFERROR(INDEX($G$3:$K$174,SMALL(IF(($G$3:$G$174=$H$215),ROW($G$3:$G$174)-ROW($I$2)),ROW(#REF!)),2),"") ->  | F43: =IFERROR(INDEX($G$3:$K$174,SMALL(IF(($G$3:$G$174=$H$215),ROW($G$3:$G$174)-ROW($I$2)),ROW(#REF!)),3),"") ->  | H43: عبد الحميد | I43: =SUMIF($G$3:$G$174,x_6[[#This Row],[ادراج اسامى الموظفين]],$I$3:$I$174) -> 0
E44: =IFERROR(INDEX($G$3:$K$174,SMALL(IF(($G$3:$G$174=$H$215),ROW($G$3:$G$174)-ROW($I$2)),ROW(#REF!)),2),"") ->  | F44: =IFERROR(INDEX($G$3:$K$174,SMALL(IF(($G$3:$G$174=$H$215),ROW($G$3:$G$174)-ROW($I$2)),ROW(#REF!)),3),"") ->  | H44: أبو بكر أيمن | I44: =SUMIF($G$3:$G$174,x_6[[#This Row],[ادراج اسامى الموظفين]],$I$3:$I$174) -> 0
E45: =IFERROR(INDEX($G$3:$K$174,SMALL(IF(($G$3:$G$174=$H$215),ROW($G$3:$G$174)-ROW($I$2)),ROW(#REF!)),2),"") ->  | F45: =IFERROR(INDEX($G$3:$K$174,SMALL(IF(($G$3:$G$174=$H$215),ROW($G$3:$G$174)-ROW($I$2)),ROW(#REF!)),3),"") ->  | H45: سيد الفرشجى | I45: =SUMIF($G$3:$G$174,x_6[[#This Row],[ادراج اسامى الموظفين]],$I$3:$I$174) -> 0
E46: =IFERROR(INDEX($G$3:$K$174,SMALL(IF(($G$3:$G$174=$H$215),ROW($G$3:$G$174)-ROW($I$2)),ROW(#REF!)),2),"") ->  | F46: =IFERROR(INDEX($G$3:$K$174,SMALL(IF(($G$3:$G$174=$H$215),ROW($G$3:$G$174)-ROW($I$2)),ROW(#REF!)),3),"") ->  | H46: محمد الحداد | I46: =SUMIF($G$3:$G$174,x_6[[#This Row],[ادراج اسامى الموظفين]],$I$3:$I$174) -> 0
E47: =IFERROR(INDEX($G$3:$K$174,SMALL(IF(($G$3:$G$174=$H$215),ROW($G$3:$G$174)-ROW($I$2)),ROW(#REF!)),2),"") ->  | F47: =IFERROR(INDEX($G$3:$K$174,SMALL(IF(($G$3:$G$174=$H$215),ROW($G$3:$G$174)-ROW($I$2)),ROW(#REF!)),3),"") ->  | H47: محمد الفرشجى | I47: =SUMIF($G$3:$G$174,x_6[[#This Row],[ادراج اسامى الموظفين]],$I$3:$I$174) -> 0
E48: =IFERROR(INDEX($G$3:$K$174,SMALL(IF(($G$3:$G$174=$H$215),ROW($G$3:$G$174)-ROW($I$2)),ROW(#REF!)),2),"") ->  | F48: =IFERROR(INDEX($G$3:$K$174,SMALL(IF(($G$3:$G$174=$H$215),ROW($G$3:$G$174)-ROW($I$2)),ROW(#REF!)),3),"") ->  | H48: محمـود | I48: =SUMIF($G$3:$G$174,x_6[[#This Row],[ادراج اسامى الموظفين]],$I$3:$I$174) -> 0
E49: =IFERROR(INDEX($G$3:$K$174,SMALL(IF(($G$3:$G$174=$H$215),ROW($G$3:$G$174)-ROW($I$2)),ROW(#REF!)),2),"") ->  | F49: =IFERROR(INDEX($G$3:$K$174,SMALL(IF(($G$3:$G$174=$H$215),ROW($G$3:$G$174)-ROW($I$2)),ROW(#REF!)),3),"") ->  | H49: أحمد مصطفى | I49: =SUMIF($G$3:$G$174,x_6[[#This Row],[ادراج اسامى الموظفين]],$I$3:$I$174) -> 0
E50: =IFERROR(INDEX($G$3:$K$174,SMALL(IF(($G$3:$G$174=$H$215),ROW($G$3:$G$174)-ROW($I$2)),ROW(#REF!)),2),"") ->  | F50: =IFERROR(INDEX($G$3:$K$174,SMALL(IF(($G$3:$G$174=$H$215),ROW($G$3:$G$174)-ROW($I$2)),ROW(#REF!)),3),"") ->  | H50: خالد | I50: =SUMIF($G$3:$G$174,x_6[[#This Row],[ادراج اسامى الموظفين]],$I$3:$I$174) -> 0
E51: =IFERROR(INDEX($G$3:$K$174,SMALL(IF(($G$3:$G$174=$H$215),ROW($G$3:$G$174)-ROW($I$2)),ROW(#REF!)),2),"") ->  | F51: =IFERROR(INDEX($G$3:$K$174,SMALL(IF(($G$3:$G$174=$H$215),ROW($G$3:$G$174)-ROW($I$2)),ROW(#REF!)),3),"") ->  | I51: =SUMIF($G$3:$G$174,x_6[[#This Row],[ادراج اسامى الموظفين]],$I$3:$I$174) -> 0
E52: =IFERROR(INDEX($G$3:$K$174,SMALL(IF(($G$3:$G$174=$H$215),ROW($G$3:$G$174)-ROW($I$2)),ROW(#REF!)),2),"") ->  | F52: =IFERROR(INDEX($G$3:$K$174,SMALL(IF(($G$3:$G$174=$H$215),ROW($G$3:$G$174)-ROW($I$2)),ROW(#REF!)),3),"") ->  | I52: =SUMIF($G$3:$G$174,x_6[[#This Row],[ادراج اسامى الموظفين]],$I$3:$I$174) -> 0
E53: =IFERROR(INDEX($G$3:$K$174,SMALL(IF(($G$3:$G$174=$H$215),ROW($G$3:$G$174)-ROW($I$2)),ROW(#REF!)),2),"") ->  | F53: =IFERROR(INDEX($G$3:$K$174,SMALL(IF(($G$3:$G$174=$H$215),ROW($G$3:$G$174)-ROW($I$2)),ROW(#REF!)),3),"") ->  | I53: =SUMIF($G$3:$G$174,x_6[[#This Row],[ادراج اسامى الموظفين]],$I$3:$I$174) -> 0
E54: =IFERROR(INDEX($G$3:$K$174,SMALL(IF(($G$3:$G$174=$H$215),ROW($G$3:$G$174)-ROW($I$2)),ROW(#REF!)),2),"") ->  | F54: =IFERROR(INDEX($G$3:$K$174,SMALL(IF(($G$3:$G$174=$H$215),ROW($G$3:$G$174)-ROW($I$2)),ROW(#REF!)),3),"") ->  | I54: =SUMIF($G$3:$G$174,x_6[[#This Row],[ادراج اسامى الموظفين]],$I$3:$I$174) -> 0
E55: =IFERROR(INDEX($G$3:$K$174,SMALL(IF(($G$3:$G$174=$H$215),ROW($G$3:$G$174)-ROW($I$2)),ROW(#REF!)),2),"") ->  | F55: =IFERROR(INDEX($G$3:$K$174,SMALL(IF(($G$3:$G$174=$H$215),ROW($G$3:$G$174)-ROW($I$2)),ROW(#REF!)),3),"") ->  | H55: مسجد المصطفى | I55: =SUMIF($G$3:$G$174,x_6[[#This Row],[ادراج اسامى الموظفين]],$I$3:$I$174) -> 0
E56: =IFERROR(INDEX($G$3:$K$174,SMALL(IF(($G$3:$G$174=$H$215),ROW($G$3:$G$174)-ROW($I$2)),ROW(#REF!)),2),"") ->  | F56: =IFERROR(INDEX($G$3:$K$174,SMALL(IF(($G$3:$G$174=$H$215),ROW($G$3:$G$174)-ROW($I$2)),ROW(#REF!)),3),"") ->  | H56: عمرو | I56: =SUMIF($G$3:$G$174,x_6[[#This Row],[ادراج اسامى الموظفين]],$I$3:$I$174) -> 0

Sheet الأجازة السنوية (hidden)
A1: الأجــــــــــــــــازة السنــــويــــــــــــــة
A2: م | B2: الإســــــــم | C2: شــهـــر 1 | D2: شــهـــر 2 | E2: شــهـــر 3 | F2: شــهـــر 4 | G2: شــهـــر 5 | H2: شــهـــر 6 | I2: شــهـــر 7 | J2: شــهـــر 8 | K2: شــهـــر 9 | L2: شــهـــر 10 | M2: شــهـــر 11 | N2: شــهـــر 12 | O2: الإجــمـــالـــى
A3: 1 | B3: مصطفى القاضى | E3: ='كشف المرتبات'!H38 -> 0 | O3: =SUM(C3:N3) -> 0
A4: 2 | B4: أيمن القاضى | E4: ='كشف المرتبات'!H39 -> 0 | O4: =SUM(C4:N4) -> 0
A5: 3 | B5: بكر كشك | E5: ='كشف المرتبات'!H40 -> 0 | O5: 0
A6: 4 | B6: حسن أبو ندا | E6: ='كشف المرتبات'!H41 -> 0 | O6: 0
A7: 5 | B7: مصطفى محيى | D7: 1 | E7: ='كشف المرتبات'!H42 -> 0 | O7: 1
A8: 6 | B8: أشرف | E8: ='كشف المرتبات'!H43 -> 0 | O8: 0
A9: 7 | B9: أحمد رمزى | C9: 1 | D9: 6 | E9: ='كشف المرتبات'!H44 -> 0 | O9: 7
A10: 8 | B10: أبو خالد | D10: 1 | E10: ='كشف المرتبات'!H45 -> 0 | O10: 1
A11: 9 | B11: هانى صالح | D11: 1 | E11: ='كشف المرتبات'!H46 -> 0 | O11: 1
A12: 10 | B12: إسلام عــوض | C12: 3 | E12: ='كشف المرتبات'!H47 -> 0 | O12: 3
A13: 11 | B13: ياسر أحمد طايع | E13: ='كشف المرتبات'!H48 -> 0 | O13: 0
A14: 12 | B14: محمد ورد | E14: ='كشف المرتبات'!H49 -> 0 | O14: 0
A15: 13 | B15: محمود شكرى | D15: 1 | E15: ='كشف المرتبات'!H50 -> 0 | O15: 1
A16: 14 | B16: عبـد الله | E16: ='كشف المرتبات'!H51 -> 0 | O16: 0
A17: 15 | B17: أحمد غريب | E17: ='كشف المرتبات'!H52 -> 0 | O17: 0
A18: 16 | B18: صـلاح شــرطـــة | E18: ='كشف المرتبات'!H53 -> 0 | O18: 0
A19: 17 | B19: مـحـمـد كـمـال | E19: ='كشف المرتبات'!H54 -> 0 | O19: 0
A20: 18 | B20: عبد الحميد | E20: ='كشف المرتبات'!H55 -> 0 | O20: 0
A21: 19 | B21: أبو بكر أيمن | E21: ='كشف المرتبات'!H56 -> 0 | O21: 0
A22: 20 | B22: سيد الفرشجى | D22: 1 | E22: ='كشف المرتبات'!H57 -> 0 | O22: 1
A23: 21 | B23: محمد الحداد | D23: 1 | E23: ='كشف المرتبات'!H58 -> 0 | O23: 1
A24: 22 | B24: محمد الفرشجى | D24: 5 | E24: ='كشف المرتبات'!H59 -> 0 | O24: 5
A25: 23 | B25: أحمد مصطفى | E25: ='كشف المرتبات'!H60 -> 0 | O25: 0
A26: 24 | B26: خالد | E26: ='كشف المرتبات'!H61 -> 0 | O26: 0
A27: 25 | B27: عبد الرحمن | E27: ='كشف المرتبات'!H62 -> 0 | O27: 0
A28: 26 | B28: محمد مصطفى | E28: ='كشف المرتبات'!H63 -> 0 | O28: 0
A29: 27 | B29: محمد سمير | E29: ='كشف المرتبات'!H64 -> 0 | O29: 0
A30: 28 | B30: محمد أحمد | E30: ='كشف المرتبات'!H65 -> 0 | O30: 0
A31: 29 | B31: محمـود حمدى | E31: ='كشف المرتبات'!H66 -> 0 | O31: 0
A32: 30 | E32: ='كشف المرتبات'!H67 -> 0 | O32: 0
A33: 31 | O33: 0
A34: 32 | O34: 0
A35: 33 | O35: 0
A36: 34 | O36: 0

Sheet الحركة الشهرية (hidden)
A1: إجـمــالــى الـحــركــة الـشـهـــريـــة
A2: م | B2: التاريخ | C2: بيــان شـهــر | D2: رأس المــال شيكات + نقدية | E2: المصـروفـات الـيـومـيــة | F2: مصروفـات الـعـهــدة | G2: المبيـعـات | H2: المشـتريات | I2: الإجـمــالــى
A4: 1 | B4: 2021-01-30 | C4: يـنـايــر | D4: ='رصيــد الخــزنــة'!$D$53 -> 0 | E4: ='مــصــــروفــــــات اليومـيـــة'!$D$40 -> 0 | F4: ='مــصــــروفــــــات اليومـيـــة'!#REF! ->  | G4: ='مشتريات ومبيعـات'!$H$33 -> 0 | H4: ='مشتريات ومبيعـات'!$R$33 -> 0 | I4: =SUM(D4:H4) -> 
A5: 2 | B5: 30/2/21 | C5: فبـرايـر | D5: ='[1]شهر فبراير '!G60 -> 0 | G5: ='[1]شهر فبراير '!I60 -> 0 | H5: ='[1]شهر فبراير '!J60 -> 0 | I5: 0
A6: 3 | B6: 2021-03-30 | C6: مـارس | D6: ='[1]شهر مارس '!G60 -> 0 | G6: ='[1]شهر مارس '!I60 -> 0 | H6: ='[1]شهر مارس '!J60 -> 0 | I6: 0
A7: 4 | B7: 2021-04-30 | C7: إبـريـل | D7: ='[1]شهر ابريل '!G60 -> 0 | G7: ='[1]شهر ابريل '!I60 -> 0 | H7: ='[1]شهر ابريل '!J60 -> 0 | I7: 0
A8: 5 | B8: 2021-05-30 | C8: مـايــو | D8: ='[1]شهر مايو'!G60 -> 0 | G8: ='[1]شهر مايو'!I60 -> 0 | H8: ='[1]شهر مايو'!J60 -> 0 | I8: 0
A9: 6 | B9: 2021-06-30 | C9: يونيـو | D9: ='[1]شهر يونيو'!G60 -> 0 | G9: ='[1]شهر يونيو'!I60 -> 0 | H9: ='[1]شهر يونيو'!J60 -> 0 | I9: 0
A10: 7 | B10: 2021-07-30 | C10: يوليـو | D10: ='[1]شهر يوليو'!G60 -> 0 | G10: ='[1]شهر يوليو'!I60 -> 0 | H10: ='[1]شهر يوليو'!J60 -> 0 | I10: 0
A11: 8 | B11: 2021-08-30 | C11: أغسطـس | D11: ='[1]شهر اغسطس'!G60 -> 0 | G11: ='[1]شهر اغسطس'!I60 -> 0 | H11: ='[1]شهر اغسطس'!J60 -> 0 | I11: 0
A12: 9 | B12: 2021-09-30 | C12: سبتمبــر | D12: ='[1]شهر سبتمبر'!G60 -> 0 | G12: ='[1]شهر سبتمبر'!I60 -> 0 | H12: ='[1]شهر سبتمبر'!J60 -> 0 | I12: 0
A13: 10 | B13: 2021-10-30 | C13: أكتـوبـــر | D13: ='[1]شهر اكتوبر '!G60 -> 0 | G13: ='[1]شهر اكتوبر '!I60 -> 0 | H13: ='[1]شهر اكتوبر '!J60 -> 0 | I13: 0
A14: 11 | B14: 2021-11-30 | C14: نوفمـبـر | D14: ='[1]شهر نوفمبر '!G60 -> 0 | G14: ='[1]شهر نوفمبر '!I60 -> 0 | H14: ='[1]شهر نوفمبر '!J60 -> 0 | I14: 0
A15: 12 | B15: 2021-12-30 | C15: ديسـمبـر | D15: ='[1]شهر دسبتمبر '!G60 -> 0 | G15: ='[1]شهر دسبتمبر '!I60 -> 0 | H15: ='[1]شهر دسبتمبر '!J60 -> 0 | I15: 0
A16: الإجـمــالــى | D16: =SUM(D4:D15) -> 0 | G16: 0 | I16: =SUM(I4:I15) -> 
